Workbook

Sheet Works
A1: CONTRACT JW14402 | F1: Date :08/09/2025
A2: JOBURG WATER | F2: Rev 8
A3: Turffontein Corridors of Freedom - Water Upgrade (Forest Hill New Tower and Pumpstation)
A12: Bill of Quantities
A59: Bill of Quantities page number 8

Sheet 1 P&G
A1: =Works!A1 -> CONTRACT JW14402 | F1: =Works!F1 -> Date :08/09/2025 | I1: 40%
A2: JOBURG WATER
A3: =Works!A3 -> Turffontein Corridors of Freedom - Water Upgrade (Forest Hill New Tower and Pumpstation)
A5: Item | B5: Payment | C5: Item Description | D5: Unit | E5: Quantities | F5: Rate | G5: Amount
A6: number | B6: reference | G6: Rands.cents
B7: SANS | C7: Schedule 1
B8: 1200 | C8: Preliminary and general
A9: 1.1 | C9: Fixed charge items
A11: 1.1.1 | B11: A8.3.1 | C11: Contractual requirements: | D11: sum
C12: All Contractual requirements affecting the Contractor: The sum shall cover the Contractor's initial cost of providing surities, insurances as per the GCC and the Contract Data and any other financial obligations of a preliminary and general nature.
A17: 1.1.2 | C17: Establishment of Facilities in the site:
A19: 1.1.2.1 | B19: A8.3.2 | C19: Facilities for the Contractor: | D19: sum
C20: Offices & storage facilities, workshops, ablutions, tools and equipment,
C21: plant, cranes, water and electicity and any other facilities required
C22: by the Contractor for the succesful completion of the project.
C23: Deal with rain and/or ground water in all type of excavations on site
C24: as described in SANS 1 200 A section 5.5
A26: 1.1.2.2 | C26: Facilities for the Client's agent | D26: sum
C27: Client's Agent facilities as described in PSAB 3.2 Engineer's Office in
C28: the Project Specifications:
B29: PSAB 3.1 | C29: Name board (2 number) as specified in the Tender Document
B30: PSA8.3.2.1 | C30: Furnished office for the Project Manager's use (see item PSAB3.2 in the document)
C31: including carport and board room for site meetings as well as equipment
C32: as described in PSAB 4
B33: PSA8.3.2.1 | C33: Furnished office for the Client's use (see item PSAB3.2 in the document)
A35: 1.1.3 | B35: A8.3.4 | C35: Removal of site establishment
C36: Removal of all items established in terms of 1.1.2.1 above and shall
C37: provide for the restoring the Site to it's origonal state | D37: sum
A39: 1.2 | C39: Time related items
A41: 1.2.1 | B41: A8.4.1 | C41: Contractual requirements on a monthly bases affecting the Contractor | D41: month | E41: 24
C43: The Contractor to maintain the following items or as amended in the
C44: Tender Document - for the duration of the Contract :
A45: 1.2.2 | B45: A8.4.2.2 | C45: All facilities on the site for the Engineer & for the Contractor | D45: month | E45: 24
C47: Other obligations by the Contractor on a time bases for the duration
C48: of the Contract :
A49: 1.2.3 | B49: A8.4.3 | C49: Full time supervision of the site as specified in the Tender Document | D49: month | E49: 24
A50: 1.2.4 | B50: A8.4.4 | C50: Company & head office administration costs pertaining to the Contract | D50: month | E50: 24
A51: 1.2.5 | B51: A8.4.5 | C51: Other time related obligations by the Contractor | D51: month | E51: 24
A52: 1.2.6 | B52: PS2.13 | C52: Accomodation of traffic | D52: month | E52: 24
A53: 1.2.7 | C53: Provide security for the duration of the project | D53: month | E53: 24
A56: Schedule sub total carried forward to page 10
A57: =Works!A59+1 -> Bill of Quantities page number 9
A63: CONTRACT JW14402 | F63: Date :08/08/2025 | I63: 40%
A64: JOBURG WATER
A65: Turffontein Corridors of Freedom - Water Upgrade (Forest Hill New Tower and Pumpstation)
A67: Item | B67: Payment | C67: Item Description | D67: Unit | E67: Quantities | F67: Rate | G67: Amount
A68: number | B68: reference | G68: Rands.cents
B69: SANS | C69: Schedule 1 continued
B70: 1200 | C70: =C8 -> Preliminary and general
A71: =A57 -> -\schedule continued from page 9
A72: 1.3 | C72: Provisional sums by the Engineer
A74: 1.3.1 | B74: A8.5a | C74: Provisional sum for various tests requested by the Engineer | D74: Prov | E74: 1 | F74: 140,000.00 | G74: 140,000.00
A75: 1.3.2 | B75: PSA5.10.2 | C75: Prov sum for SC and CLO payments | D75: Prov | E75: 1 | F75: 240,000.00 | G75: 240,000.00
A76: 1.3.3 | B76: PSA5.10.2 | C76: Prov sum for JW trainee payments | D76: Prov | E76: 1 | F76: 288,000.00 | G76: 288,000.00
A77: 1.3.4 | B77: PSA5.10.3 | C77: Accredited skills training (concrete works) | D77: Prov | E77: 1 | F77: 70,000.00 | G77: 70,000.00
A78: 1.3.5 | B78: PSA5.10.3 | C78: Accredited construction management training | D78: Prov | E78: 1 | F78: 50,000.00 | G78: 50,000.00
A79: 1.3.9 | C79: Provisional sums for Electrical supply (City Power) | D79: Prov | E79: 1 | F79: 700,000.00 | G79: 700,000.00
C81: Mark-up and Handling fee on otems 1.3.1 to 13.5 above | E81: %
A117: Schedule 1 total carried to summary page
A118: =A57+1 -> Bill of Quantities page number 10

Sheet 2 OHS
A1: =Works!A1 -> CONTRACT JW14402 | F1: =Works!F1 -> Date :08/09/2025 | J1: 40%
A2: JOBURG WATER
A3: =Works!A3 -> Turffontein Corridors of Freedom - Water Upgrade (Forest Hill New Tower and Pumpstation)
A5: Item | B5: Payment | C5: Item Description | D5: Unit | E5: Quantities | F5: Rate | G5: Amount
A6: number | B6: reference | E6: tender | G6: Rands.cents
B7: SANS | C7: Schedule 2
B8: 1 200 | C8: Occupational health and safety requirements
A9: 2.1 | C9: Notification of construction work
C11: Quantities are re-measurable- proof shall be supplied by the
C12: contractor of quantities claimed
A13: 2.1.1 | C13: Notification of Construction work to the Provincial Director as | D13: sum | E13: 1
C14: requested by the Engineer under the Construction Regulations
C15: of the Occupational Health & Safety (Regulation 3) Act no. 85/1993
A17: 2.2 | C17: Health and safety plan
A19: 2.2.1 | C19: Based on the Occupational Health and Safety specification, | D19: sum | E19: 1
C20: setting up a job and site specific Health and Safety Plan
C21: under the Construction Regulations (Regulation 5) of the
C22: Occupational Health & Safety Act no. 85/1993
A24: 2.3 | C24: Health and safety main file
A26: 2.3.1 | C26: Setting up a job and site specific Health & Safety Main file as | D26: sum | E26: 1
C27: speicied under the Construction Regulations
C28: (Regulation 5) of the Occupational Health & Safety Act no. 85/1993
C29: NOT TO BE REMOVED FROM SITE
C30: File to be a lever arch file with original colour document of
C31: acceptable standards including dividers. Emergency telephone
C32: numbers to be displayed on back of file. The file will be
C33: expanded during the project as and when required by the
C34: Client
C35: File to include the following:
C36: Copy of H&S Act
C37: Proof of registration with COID Insurer
C38: Notification of construction work
C39: Mandatory Agreement
C40: H&S Specifications provided by client
C41: Copy of tender document, drawings etc
C42: Company Safety Policy to be signed by CEO
C43: Company organogrammme with respect to H&S on specific site
C44: Letters of appointment for specific site
C45: List of subcontractors
C46: Evacuation plan
C47: Risk assessments and method statements
C48: Safe work procedures and material safety data sheets
C49: Fall protection plan
C50: Incident recordings
C51: Medical records
C52: Minutes of H&S meetings
A57: Schedule sub total carried forward to page 12
A58: ='1 P&G'!A118+1 -> Bill of Quantities page number 11
A64: Item | B64: Payment | C64: Item Description | D64: Unit | E64: Quantities | F64: Rate | G64: Amount
A65: number | B65: reference | G65: Rands.cents
B66: SANS | C66: Schedule 2 continued
B67: 1 200 | C67: =C8 -> Occupational health and safety requirements
A68: =A58 -> -\schedule continued from page 11
A70: 2.4 | C70: Health & safety register file
A72: 2.4.1 | C72: Setting up a job and site specific Health & Safety Register File as | D72: sum | E72: 1
C73: requested by the Engineer under the Construction Regulations
C74: (Regulation 5) of the Occupational Health & Safety Act no. 85/1993
C75: File to be a lever arch file with original colour document of
C76: acceptable standards including dividers.
C77: NOT TO BE REMOVED FROM SITE
A79: 2.5 | C79: Health & Safety training file
A81: 2.5.1 | C81: Setting up a job and site specific Health & Safety Training File as | D81: sum | E81: 1
C82: requested by the Engineer under the Construction Regulations
C83: (Regulation 5) of the Occupational Health & Safety Act no. 85/1993
C84: File to be a lever arch file with original colour document of
C85: acceptable standards including dividers.
C86: NOT TO BE REMOVED FROM SITE
A88: 2.6 | C88: Service Provider appointments
A90: 2.6.1 | C90: Appointment of a competent person to perform risk assessment | D90: sum | E90: 1
C91: and training on site under Construction Regulations (Regulation 7)
C92: of the Occupational Health & Safety Act no. 85/1993
A94: 2.7 | C94: Training on site
A96: 2.7.1 | C96: Allow for monthly salary for the H&S representative as required by | D96: sum | E96: 1
C97: law for the duration of the project for training
C98: The H&S Representative to perform the following :
C99: H&S duties on site
C100: Appointee to be permanently on site and under supervision of
C101: Contractor's Site Supervisor. Appointment to be for the duration of
C102: the Contract. Induction training of all workers of Sub-Contractors.
C103: Public awareness training.
C104: Toolbox talks on environmental awareness
C105: First aid awareness
C106: Fire fighting awareness
C107: Tool box talks on hand tools and hand tool accidents
C108: Hold tool box talks on machine guarding
C109: Tool box talks on lifting materials by hand
C110: Tool box talks on safe loading
C111: Tool box talks on safety signs
C112: Tool box talks on ten commandments of safety
C113: Community training
C114: Tool box talks on working on heights
C115: Tool box talks on working with safety harness
C116: Tool box talks on working with hydraulic elevators
A120: =A121+1 -> Schedule sub total carried forward to page 13
A121: =A58+1 -> Bill of Quantities page number 12
A127: Item | B127: Payment | C127: Item Description | D127: Unit | E127: Quantities | F127: Rate | G127: Amount
A128: number | B128: reference | G128: Rands.cents
B129: SANS | C129: =C66 -> Schedule 2 continued
B130: 1 200 | C130: =C8 -> Occupational health and safety requirements
A131: =A121 -> -\schedule continued from page 12
A133: 2.8 | C133: First aid equipment
A135: 2.8.1 | C135: First aid box | D135: no | E135: 3
A136: 2.8.2 | C136: First aid boxes for Sub contractors | D136: no | E136: 2
A137: 2.8.3 | C137: Stretcher | D137: no | E137: 1
A139: 2.9 | C139: Fire fighting equipment
A141: 2.9.1 | C141: Fire extinguishers | D141: no | E141: 3
A142: 2.9.2 | C142: Fire extinguishers for Sub Contractors if applicable | D142: no | E142: 2
A143: 2.9.3 | C143: Fire extinguishers test certificate for main and sub contractors | D143: no | E143: =+E141+E142 -> 5
A145: 2.10 | C145: Personal protective clothing
C147: Allow for the cost of the following PPE as required on site by | D147: sum | E147: 1
C148: workers (number of each to be determined by the Tenderer)
A149: 2.10.1 | C149: Hard hats
A150: 2.10.2 | C150: Safety Shoes
A151: 2.10.3 | C151: Dust Masks
A152: 2.10.4 | C152: Safety Goggles
A153: 2.10.5 | C153: Gum Boots
A154: 2.10.6 | C154: Overalls
A155: 2.10.7 | C155: Safety harnasses
A157: 2.11 | C157: Chemical toilets
C159: Allow for toilet facilities on site as required by specifications
A160: 2.11.1 | C160: For male workers | D160: no | E160: 3
A161: 2.11.2 | C161: For female workers | D161: no | E161: 3
A163: 2.12 | C163: Eating facilities
A165: 2.12.1 | C165: Allow for eating facilities on site in the form of a shaded net, table | D165: no | E165: 1
C166: and chairs
A168: 2.13 | C168: Signs
C170: Allow for signboards to be displayed on site as required | D170: sum | E170: 1
A171: 2.13.1 | C171: SMI board
A172: 2.13.2 | C172: No entry signs
A173: 2.13.3 | C173: First Aid signs
A174: 2.13.4 | C174: Fire equipment signs
A175: 2.13.5 | C175: Warning signs (Construction area boards)
A176: 2.13.6 | C176: Traffic control signs (mechanical & pedestrian)
A177: 2.13.7 | C177: Fire siren
A178: 2.13.8 | C178: Name boards on construction vehicles
A182: =A183+1 -> Schedule sub total carried forward to page 14
A183: =A121+1 -> Bill of Quantities page number 13
A189: Item | B189: Payment | C189: Item Description | D189: Unit | E189: Quantities | F189: Rate | G189: Amount
A190: number | B190: reference | G190: Rands.cents
B191: SANS | C191: =C129 -> Schedule 2 continued
B192: 1 200 | C192: =C8 -> Occupational health and safety requirements
A193: =A183 -> -\schedule continued from page 13
A195: 2.14 | C195: Medical tests
C197: Appointment of a competent person to perform medical tests to
C198: all employees
A199: 2.14.1 | C199: Allow for medical tests of workers as medical fitness tests for | D199: sum | E199: 1 | J199: 65,236.21
C200: all employees
A202: 2.15 | C202: Barricading & demarcation
A204: 2.15.1 | C204: Allow for proper barricading and demarcation of streets to direct | D204: sum | E204: 1 | J204: 10,851.00
C205: public and vehicles
A207: 2.16 | C207: Health & Safety agent
A209: 2.16.1 | C209: Provisional sum for the appointment of a Health & Safety Agent to | D209: Prov | E209: 1 | G209: 130,000.00
C210: act on behalf of the Employer to ensure adherence of the
C211: Contractor to all Health & Safety requirements
A245: Schedule 2 total carried to summary page
A246: =A183+1 -> Bill of Quantities page number 14

Sheet 3 Tower
A1: =Works!A1 -> CONTRACT JW14402 | F1: =Works!F1 -> Date :08/09/2025 | J1: 60.0%
A2: JOBURG WATER
A3: =Works!A3 -> Turffontein Corridors of Freedom - Water Upgrade (Forest Hill New Tower and Pumpstation)
A5: Item | B5: Payment | C5: Item Description | D5: Unit | E5: Quantities | F5: Rate | G5: Amount
A6: number | B6: reference | G6: Rands.cents
B7: SANS | C7: Schedule 3
B8: 1 200 | C8: 2,5 Mℓ capacity elevated water tower
C9: Drawing reference : T01 to T05
C10: Tower
A11: 3.1 | C11: Earthworks
A13: 3.1.1 | B13: D8.3.1.1 | C13: Clear and strip site | D13: m² | E13: 1,500 | J13: 5.73 | K13: =E13*J13 -> 8595
A15: 3.1.2 | B15: D8.3.2 | C15: Excavate in all materials and stockpile for later use for backfill or embankment
C16: or dispose surplus material to remote site found by Contractor | D16: m³ | E16: 1,530 | J16: 31.42 | K16: =E16*J16 -> 48072.6
A18: 3.1.3 | B18: D8.3.2.b1 | C18: Extra over for excavation in intermediate material | D18: m³ | E18: 100 | J18: 11.55 | K18: =E18*J18 -> 1155
A20: 3.1.4 | B20: D8.3.2.b2 | C20: Extra over for excavation in hard rock material | D20: m³ | E20: 350 | J20: 376.47 | K20: =E20*J20 -> 131764.5
A22: 3.1.5 | B22: D8.3.2 | C22: Backfill over completed foundation in layers of 150mm with material from
C23: stockpile, compacted to 95% Mod AASHTO | D23: m³ | E23: 1,216 | J23: 58.7 | K23: =E23*J23 -> 71379.2
A25: 3.1.6 | B25: ME8.3.5 | C25: Compact final layer to 97% Mod AASHTO, stabilised with 3% cement | D25: m³ | E25: 40 | J25: 30.84 | K25: =E25*J25 -> 1233.6
C26: Stabilizing agent: Portland cement | D26: t | E26: 3 | J26: 2257.25 | K26: =E26*J26 -> 5643.125
A28: 3.1.7 | C28: Apply weed killer and insecticide soil poisening over compacted
C29: area below tower | D29: m² | E29: 340 | J29: 11.03 | K29: =E29*J29 -> 3750.2
A31: 3.1.8 | C31: Pave area below tower with 450 x 450 x 50 pre-cast concrete blocks on
C32: 25mm sand/cement bedding | D32: m² | E32: 450 | J32: 557.33 | K32: =E32*J32 -> 250798.5
A34: 3.1.9 | C34: Storm water channel around reservoir, 1,5m wide dished and laid
C35: to falls to discharge water on paved road, from 25MPa concrete | D35: m³ | E35: 12 | J35: 2346.51 | K35: =E35*J35 -> 28158.12
C37: Existing services
A39: 3.1.10 | B39: D8.3.8 | C39: Dig open by hand to expose the following services and backfill:
C40: Electrical cables | D40: m | E40: 100 | J40: 150 | K40: =E40*J40 -> 15000
A42: 3.1.11 | C42: Install 2 x 110mm sleeves in trench including 600 x 600 encasing 600 x600 | D42: m | E42: 100 | J42: 50 | K42: =E42*J42 -> 5000
A44: 3.1.12 | B44: DB8.3.2 | C44: Dig new trench, 0,6m wide and 1,0m deep by hand at new position
C45: of electrical cable, backfill and re-compact after installation of new cable | D45: m | E45: 100 | J45: 150 | K45: =E45*J45 -> 15000
A47: 3.1.13 | B47: D8.3.8 | C47: Dig open by hand to expose the following services:
C48: Water lines | D48: m | E48: 75 | J48: 200 | K48: =E48*J48 -> 15000
A50: 3.1.14 | C50: Provisional sum for additional Geotech investigation | D50: Prov | E50: 1 | F50: 120,000.00 | G50: 120,000.00 | J50: 100 | K50: =#REF!*J50 -> 
A51: 3.1.15 | C51: Provisional sum for Geotech inspections | D51: Prov | E51: 1 | F51: 100,000.00 | G51: 100,000.00
A53: 1.3.11 | C53: Provisional sum for the rehabilitation of old tower | D53: Prov | E53: 1 | F53: 4,000,000.00 | G53: 4,000,000.00
A57: Schedule sub total carried forward to page 16 | K57: =SUM(K13:K56) -> 
A58: ='2 OHS'!A246+1 -> Bill of Quantities page number 15
A64: Item | B64: Payment | C64: Item Description | D64: Unit | E64: Quantities | F64: Rate | G64: Amount
A65: number | B65: reference | G65: Rands.cents
B66: SANS | C66: Schedule 3 continued
B67: 1 200 | C67: =C8 -> 2,5 Mℓ capacity elevated water tower
C68: =C9 -> Drawing reference : T01 to T05
A69: =A58 -> -\schedule continued from page 15
A71: 3.2 | C71: Concrete works
C72: Foundations
A73: 3.2.1 | B73: G8.4.2 | C73: 75 mm blinding layer laid on excavation platform from 15 MPa concrete | D73: m³ | E73: 90 | J73: 107.61 | K73: =E73*J73 -> 9684.9
C74: at reduced level built with radius of 8 m
A75: 3.2.2 | B75: G8.4.2 | C75: 500 mm circular foundation slab from 35 MPa concrete cast at reduced | D75: m³ | E75: 205 | J75: 1606.96 | K75: =E75*J75 -> 329426.8
C76: level built with radius of 8m
A77: 3.2.3 | B77: G8.4.3 | C77: Column foundations from 35 MPa concrete - 2,0m x 2,0m x 1,5m high | D77: m³ | E77: 168 | J77: 1606.96 | K77: =E77*J77 -> 269969.28
C78: cast at reduced level with sloping top surface to take 0,6 x 1,05 columns
A79: 3.2.4 | B79: G8.4.3 | C79: Shaft foundation from 35 Mpa concrete - 6,4m x 6,4m x 0,5m cast on | D79: m³ | E79: 21 | J79: 1606.96 | K79: =E79*J79 -> 33746.16
C80: Circular base at reduced level
A81: 3.2.5 | B81: G8.4.3 | C81: 350mm thick circular shaft foundation wall from 35MPa concrete to 2.35m Inside | D81: m³ | E81: 20 | J81: 1793.92 | K81: =E81*J81 -> 34981.44
C82: radius up to shaft floor level
A83: 3.2.6 | B83: G8.4.2 | C83: 1500mm thick mass concrete infill from 15MPa concrete into cylinder | D83: m³ | E83: 60 | J83: 1434.75 | K83: =E83*J83 -> 86085
C84: as formed with walls as per item 3.1.5, from foundation level to floor level
A85: 3.2.7 | B85: G8.4.2 | C85: 170mm thick floor slab in shaft from 35PMa concrete | D85: m³ | E85: 5 | J85: 1793.92 | K85: =E85*J85 -> 8072.64
C87: Access shafts
A88: 3.2.8 | B88: G8.4.3 | C88: 350mm access shaft from 35 Mpa concrete between raduises 2,35m and | D88: m³ | E88: 119 | J88: 1793.92 | K88: =E88*J88 -> 213476.48
C89: 2,7m to 21m above ground level - onto walls as per item 3.1.5
A90: 3.2.9 | B90: G8.4.3 | C90: 250mm final shaft from 35 Mpa concrete between radiuses 1,0m and | D90: m³ | E90: 18 | J90: 1893.38 | K90: =E90*J90 -> 34080.84
C91: 1,25m at heights from 21m to 29,4m above ground level
A92: 3.2.10 | B92: G8.4.3 | C92: 250mm thick staircase landings at various levels including final | D92: m³ | E92: 7 | J92: 2000.67 | K92: =E92*J92 -> 14004.69
C93: landing at 18,6m above ground level
C95: Columns
A96: 3.2.11 | B96: G8.4.3 | C96: 12 no. of perimeter columns from 35 MPa concrete with depth ranging | D96: m³ | E96: 150 | J96: 1893.38 | K96: =E96*J96 -> 284007
C97: from 1,05m at the base to 0,7m at springing level and constant width
C98: of 0,6m
A99: 3.2.12 | B99: G8.4.3 | C99: 24 no. of 350 x 350 inside columns from 35MPa starting on the tank floor | D99: m³ | E99: 40 | J99: 1893.38 | K99: =E99*J99 -> 75735.2
C100: 21m above ground level and supporting the tank roof slab
C102: Stiffner beams
A103: 3.2.13 | B103: G8.4.3 | C103: Stiffner beams of sizes 500mm x 750mm with flat soffit from 35MPa concrete | D103: m³ | E103: 92 | J103: 1793.92 | K103: =E103*J103 -> 165040.64
C104: at 6m & 13m above ground level - Beam type T5 & Beam type T6
A105: 3.2.14 | B105: G8.4.3 | C105: Arched beams with circular soffit above springing level at 17,6 to 19,6m | D105: m³ | E105: 93 | J105: 1893.38 | K105: =E105*J105 -> 176084.34
C106: above ground level - Beam type T3
C108: Tank floor and beams
A109: 3.2.15 | B109: G8.4.3 | C109: 350mm circular tank floor slab from 350MPa concrete, cast at 21,5m above | D109: m³ | E109: 130 | J109: 1893.38 | K109: =E109*J109 -> 246139.4
C110: ground level built with radius of 10.75m
A112: 3.2.16 | B112: G8.4.3 | C112: Beams of various sizes with flat soffit from 35MPa concrete at tank floor | D112: m³ | E112: 80 | J112: 1893.38 | K112: =E112*J112 -> 151470.4
C113: level, cast monolithic with floor slab as per item 3.2.15
C115: Tank roof slab, beams and access manholes
A116: 3.2.17 | B116: G8.4.3 | C116: 200mm circular roof slab cast at a slope of 8° from 35MPa concrete | D116: m³ | E116: 60 | J116: 2000.67 | K116: =E116*J116 -> 120040.2
C117: from 29m to 30m above ground level - Lower roof
A119: =A183 -> Schedule sub total carried forward to page 17 | J119: =SUM(J73:J118) -> 28900.54
A120: =A58+1 -> Bill of Quantities page number 16
A126: Item | B126: Payment | C126: Item Description | D126: Unit | E126: Quantities | F126: Rate | G126: Amount
A127: number | B127: reference | G127: Rands.cents
B128: SANS | C128: Schedule 3 continued
B129: 1 200 | C129: =C8 -> 2,5 Mℓ capacity elevated water tower
C130: =C9 -> Drawing reference : T01 to T05
A131: =A120 -> -\schedule continued from page 16
A133: 3.2.18 | B133: G8.4.3 | C133: 150mm circular roof slab with flat soffit from 35MPa concrete | D133: m³ | E133: 5 | J133: 2000.67 | K133: =E133*J133 -> 9003.015
C134: cast at 30m above ground level - Upper roof
A136: 3.2.19 | B136: G8.4.3 | C136: Beams of various sizes with flat soffit from 35MPa concrete at tank roof | D136: m³ | E136: 13 | J136: 2000.67 | K136: =E136*J136 -> 26008.71
C137: level, cast monolithic with roof slab as per item 3.1.15 & 3.1.16 -
C138: Beam type R1 & Beam type R2
A140: 3.2.20 | B140: G8.4.3 | C140: 150mm x 450mm sloping ledge with flat soffit from 35MPa concrete | D140: m³ | E140: 11 | J140: 2000.67 | K140: =E140*J140 -> 22007.37
C141: cast at tank roof level along perimeter of tank
C143: Tank Wall
A144: 3.2.21 | B144: G8.4.3 | C144: 350mm tank wall from 35 Mpa concrete between raduises 10.4m and 10.75m | D144: m³ | E144: 185 | J144: 1893.38 | K144: =E144*J144 -> 350275.3
C145: cast at 22m above ground level with 50mm recesses as shown
A147: 3.2.22 | B147: PSG3.5.1 | C147: Extra over items 3.2.8 to 3.2.21 for Penetron waterproofing additive
C148: as specified in PSG 3.5.1 at a rate of 0,8% by weight of cementitious content | D148: m³ | E148: 1,500 | I148: 0.0 | J148: 380.54 | K148: =E148*J148 -> 570810
C149: in the concrete mix
A150: 3.3 | C150: Reinforcement - see drawings R01 to R06
A152: 3.3.1 | B152: G8.3.1 | C152: High tensile reinforcement of various diameter for foundation slab & footings | D152: kg | E152: 24,000 | J152: 21.00 | K152: =E152*J152 -> 504000
A154: 3.3.2 | B154: G8.3.1 | C154: Hight tensile reinforcement of various diameter for shafts & tank wall | D154: kg | E154: 24,700 | J154: 21.00 | K154: =E154*J154 -> 518700
A156: 3.3.3 | B156: G8.3.1 | C156: Hight tensile reinforcement of various diameter for columns | D156: kg | E156: 22,200 | J156: 21.00 | K156: =E156*J156 -> 466200
A158: 3.3.4 | B158: G8.3.1 | C158: Hight tensile reinforcement of various diameter for beams T5 & T6 | D158: kg | E158: 8,000 | J158: 21.00 | K158: =E158*J158 -> 168000
A160: 3.3.5 | B160: G8.3.1 | C160: Hight tensile reinforcement of various diameter for tank floor slab & beams | D160: kg | E160: 30,000 | J160: 21.00 | K160: =E160*J160 -> 630000
A162: 3.3.6 | B162: G8.3.1 | C162: Hight tensile reinforcement of various diameter for tank roof slab & beams | D162: kg | E162: 15,000 | J162: 21.00 | K162: =E162*J162 -> 315000
A164: 3.3.9 | B164: G8.3.1 | C164: Hight tensile reinforcement of various diameter for landings | D164: kg | E164: 1,000 | I164: =SUM(E152:E164) -> 124,900 | J164: 21.00 | K164: =E164*J164 -> 21000
A182: =A183+1 -> Schedule sub total carried forward to page 18
A183: =A120+1 -> Bill of Quantities page number 17 | K183: =SUM(K133:K182) -> 3601004.395
A189: Item | B189: Payment | C189: Item Description | D189: Unit | E189: Quantities | F189: Rate | G189: Amount
A190: number | B190: reference | G190: Rands.cents
B191: SANS | C191: Schedule 3 continued
B192: 1 200 | C192: =C129 -> 2,5 Mℓ capacity elevated water tower
C193: =C130 -> Drawing reference : T01 to T05
A194: =A183 -> -\schedule continued from page 17
A196: 3.4 | C196: Form work
A197: 3.4.1 | B197: G8.2.2 | C197: Smooth vertical curving form work to foundation slab sides | D197: m² | E197: 40 | J197: 426.31 | K197: =E197*J197 -> 17052.4
C198: with radius of 10.8 m - 500mm high at reduced level
A199: 3.4.2 | B199: G8.2.2 | C199: Smooth vertical form work to column footings - 3500mm high | D199: m² | E199: 364 | J199: 426.31 | K199: =E199*J199 -> 155176.84
C200: at reduced level (12No.)
A201: 3.4.3 | B201: G8.2.2 | C201: Smooth vertical form work to center footing - 500mm high | D201: m² | E201: 13 | J201: 426.31 | K201: =E201*J201 -> 5456.768
C202: at reduced level
A203: 3.4.4 | B203: G8.2.2 | C203: Smooth vertical form work to tapered columns from ground level | D203: m² | E203: 886 | J203: 494.58 | K203: =E203*J203 -> 438197.88
C204: to 22m above ground including arched shape as shown (12No.)
C205: including 25 x 25 chamfer along all corners
A206: 3.4.5 | B206: G8.2.2 | C206: Smooth vertical curving form work to inside of access shaft | D206: m² | E206: 347 | J206: 851.82 | K206: =E206*J206 -> 295581.54
C207: with radius of 2.35 m from ground level to 22m above ground
A208: 3.4.6 | B208: G8.2.2 | C208: Smooth vertical curving form work to outside of access shaft | D208: m² | E208: 400 | J208: 851.82 | K208: =E208*J208 -> 340728
C209: with radius of 2.7 m from ground level to 22m above ground
A210: 3.4.7 | B210: G8.2.2 | C210: Smooth vertical curving form work to inside of final shaft | D210: m² | E210: 64 | J210: 1064.82 | K210: =E210*J210 -> 68148.48
C211: with radius of 1.0 m from 22m to 30m above ground
A212: 3.4.8 | B212: G8.2.2 | C212: Smooth vertical curving form work to outside of final shaft | D212: m² | E212: 79 | J212: 1064.82 | K212: =E212*J212 -> 84120.78
C213: with radius of 1.25 m from 22m to 30m above ground
A214: 3.4.9 | B214: G8.2.2 | C214: Smooth vertical curving form work to inside of tank wall | D214: m² | E214: 510 | J214: 1064.82 | K214: =E214*J214 -> 543058.2
C215: with radius of10.4 m from 22m to 28m above ground
A216: 3.4.10 | B216: G8.2.2 | C216: Smooth vertical curving form work to outside of tank wall | D216: m² | E216: 525 | J216: 1064.82 | K216: =E216*J216 -> 559030.5
C217: with radius of 10.75 m from 22m to 28m above ground
A218: 3.4.11 | B218: G8.2.2 | C218: Smooth vertical form work to sides of stiffner beams at 6m & 13m | D218: m² | E218: 370 | J218: 1064.82 | K218: =E218*J218 -> 393983.4
C219: above ground level (Beams T5 & T6) - 24No. Each
A220: 3.4.12 | B220: G8.2.2 | C220: Smooth horizontal form work to soffits of stiffner beams at 6m & 13m | D220: m² | E220: 125 | J220: 1699.46 | K220: =E220*J220 -> 212432.5
C221: above ground level (Beams T5 & T6) - 24No. Each
C222: including 25 x 25 chamfer along all corners
A223: 3.4.13 | B223: G8.2.2 | C223: Smooth horizontal form work to soffits of landings at various levels | D223: m² | E223: 16 | J223: 1699.46 | K223: =E223*J223 -> 27191.36
C224: up to 19m above ground level
C225: including 25 x 25 chamfer along all corners
A226: 3.4.14 | B226: G8.2.2 | C226: Smooth vertical form work to sides of landings at various levels | D226: m² | E226: 7 | J226: 424.11 | K226: =E226*J226 -> 2968.77
C227: up to 19m above ground level - 300mm high
A228: 3.4.15 | B228: G8.2.2 | C228: Smooth horizontal form work to soffit of tank floor slab at 22m | D228: m² | E228: 290 | J228: 1806.79 | K228: =E228*J228 -> 523969.1
C229: above ground level
A230: 3.4.16 | B230: G8.2.2 | C230: Smooth vertical form work to sides of tank floor beams at 22m | D230: m² | E230: 200 | J230: 706.46 | K230: =E230*J230 -> 141292
C231: above ground level (Beams T1 & T2 & T4) - 12No. Each
A232: 3.4.17 | B232: G8.2.2 | C232: Smooth horizontal form work to soffits of tank floor beams at 22m | D232: m² | E232: 74 | J232: 1806.79 | K232: =E232*J232 -> 133702.46
C233: above ground level (Beams T1 & T2 & T4) - 12No. Each
C234: including 25 x 25 chamfer along all corners
A235: 3.4.18 | B235: G8.2.2 | C235: Smooth vertical form work to sides of arched tank floor beams at | D235: m² | E235: 210 | J235: 706.46 | K235: =E235*J235 -> 148356.6
C236: 22m above ground level (Beam T3) - 12No.
A237: 3.4.19 | B237: G8.2.2 | C237: Smooth horizontal curved form work to soffits of arched tank floor | D237: m² | E237: 39 | J237: 1806.79 | K237: =E237*J237 -> 70464.81
C238: beams at 22m above ground level (Beam T3) - 12No.
C239: including 25 x 25 chamfer along all corners
A240: 3.4.20 | B240: G8.2.2 | C240: Smooth vertical form work to roof support columns at 0m to 7m | D240: m² | E240: 279 | J240: 447.83 | K240: =E240*J240 -> 124944.57
C241: above tank floor level - 12No. & 12No.
C242: including 25 x 25 chamfer along all corners
A244: =A182+1 -> Schedule sub total carried forward to page 19 | K244: =SUM(K197:K243) -> 4285856.958
A245: =A183+1 -> Bill of Quantities page number 18
A251: Item | B251: Payment | C251: Item Description | D251: Unit | E251: Quantities | F251: Rate | G251: Amount
A252: number | B252: reference | G252: Rands.cents
B253: SANS | C253: Schedule3 continued
B254: 1 200 | C254: =C192 -> 2,5 Mℓ capacity elevated water tower
C255: =C193 -> Drawing reference : T01 to T05
A256: =A245 -> -\schedule continued from page 18
A258: 3.4.21 | B258: G8.2.2 | C258: Smooth horizontal form work to soffit of roof slab at an angle of 10.8° | D258: m² | E258: 340 | J258: 1705.24 | K258: =E258*J258 -> 579781.6
C259: at 6m to 8m above tank floor level
A260: 3.4.22 | B260: G8.2.2 | C260: Smooth vertical form work to sides of tank roof beams at 6m | D260: m² | E260: 92 | J260: 534.15 | K260: =E260*J260 -> 49141.8
C261: above tank floor level (Beams R1 & R2) - 12No. Each
A262: 3.4.23 | B262: G8.2.2 | C262: Smooth horizontal form work to soffits of tank roof beams at 6m | D262: m² | E262: 38 | J262: 1274.56 | K262: =E262*J262 -> 48433.28
C263: above tank floor level (Beams R1 & R2) - 12No. Each
C264: including 25 x 25 chamfer along all corners
A265: 3.4.24 | B265: G8.2.2 | C265: Smooth horizontal formwork to soffit of perimeter ledge at 29m above | D265: m² | E265: 31 | J265: 1806.79 | K265: =E265*J265 -> 56010.49
C266: ground level including drip groove & chamfers
A267: 3.4.25 | B267: G8.2.2 | C267: Smooth vertical curving form work to roof ledge at 29m above | D267: m² | E267: 7 | J267: 945.73 | K267: =E267*J267 -> 6620.11
C268: ground level - 100mm high
A269: 3.4.26 | B269: G8.2.2 | C269: Smooth vertical form work to roof access | D269: m² | E269: 2 | J269: 639.15 | K269: =E269*J269 -> 1278.3
A270: 3.4.27 | B270: G8.2.2 | C270: Form 4,60m x 1,65m x 50mm deep reccesses to outside of | I270: R 1,150.27
C271: tank wall to match existing | D271: no | E271: 24 | I271: 4.2 | J271: 1565.93 | K271: =E271*J271 -> 37582.32
A273: 3.5 | C273: Concrete surface finishing
A275: 3.5.1 | B275: G8.4.4 | C275: Uniform wood float finish on foundation slab | D275: m² | E275: 462 | J275: 19.62 | K275: =E275*J275 -> 9064.44
A276: 3.5.2 | B276: G8.4.4 | C276: Uniform wood float finish on top face column footings | D276: m² | E276: 125 | J276: 19.62 | K276: 2452.5
A277: 3.5.3 | B277: G8.4.4 | C277: Uniform wood float finish on top face of centre footing | D277: m² | E277: 41 | J277: 19.62 | K277: 804.42
A278: 3.5.4 | B278: G8.4.4 | C278: Uniform wood float finish to top of landing surfaces | D278: m² | E278: 17 | J278: 19.62 | K278: 333.54
A279: 3.5.5 | B279: G8.4.4 | C279: Uniform steel trowel finish on top of tank floor | D279: m² | E279: 339 | J279: 19.62 | K279: 6651.18
A280: 3.5.6 | B280: G8.4.4 | C280: Uniform wood float finish to top of tank roof | D280: m² | E280: 387 | J280: 19.62 | K280: 7592.94
A282: 3.6 | C282: Waterproofing
A284: 3.6.1 | C284: Joint between tank wall and floor with 200mm wide combiflex
... 54 more rows

Sheet 4 Pump
A1: =Works!A1 -> CONTRACT JW14402 | F1: =Works!F1 -> Date :08/09/2025 | J1: 40.00%
A2: JOBURG WATER
A3: =Works!A3 -> Turffontein Corridors of Freedom - Water Upgrade (Forest Hill New Tower and Pumpstation)
A5: Item | B5: Payment | C5: Item Description | D5: Unit | E5: Quantities | F5: Rate | G5: Amount
A6: number | B6: reference | G6: Rands.cents
B7: SANS | C7: Schedule 4
B8: 1 200 | C8: Pump station and guard hut
C9: Drawing reference: P01 to P03
A10: 4.1 | C10: Pump station
A11: 4.1.1 | C11: Earthworks for pump station
A13: 4.1.1.1 | B13: D8.3.2a | C13: Excavate in bulk and stockpile for later use for backfill or embankment | J13: 32.42 | K13: =E13*J13 -> 0
C14: or dispose surplus material to remote site found by Contractor | D14: m³ | E14: 326
A16: 4.1.1.2 | B16: D8.3.2.b1 | C16: Extra over for excavation in intermediate material | D16: m³ | E16: 20 | J16: 11.55 | K16: =E16*J16 -> 231
A17: 4.1.1.3 | B17: D8.3.2.b2 | C17: Extra over for excavation in hard rock material | D17: m³ | E17: 5 | J17: 376.47 | K17: =E17*J17 -> 1882.35
A19: 4.1.1.4 | B19: D8.3.5 | C19: Extra over excavations for working space | D19: m² | E19: 62 | J19: 89.07 | K19: =E19*J19 -> 5522.34
A20: 4.1.2 | C20: Concrete works
A21: 4.1.2.1 | B21: G8.4.2 | C21: 75 mm thick blinding layer under floor slabs from 15 mPa concrete | D21: m² | E21: 150 | J21: 144.20 | K21: =E21*J21 -> 21630
A22: 4.1.2.2 | B22: G8.4.3 | C22: 250 mm floor slab from 30 Mpa concrete | D22: m³ | E22: 50 | J22: 2189.49 | K22: 109474.5
A23: 4.1.2.3 | B23: G8.4.3 | C23: 250 and 300 mm walls from 30 Mpa concrete | D23: m³ | E23: 35 | J23: 2430.46 | K23: 85066.1
A24: 4.1.2.4 | B24: G8.4.3 | C24: 150mm floor slab and steps from 30MPa | D24: m³ | E24: 6 | J24: 2558.54 | K24: 15351.24
A25: 4.1.2.5 | B25: G8.4.3 | C25: 200 - 255 roof slab with upstand beams | D25: m³ | E25: 62 | J25: 2697.45 | K25: 167241.9
A26: 4.1.2.6 | B26: G8.4.3 | C26: 100mm Concrete work top in telemetry room | D26: m³ | E26: 1.5 | J26: 3385.70
A27: 4.1.2.7 | B27: G8.4.3 | C27: Pipe encasings from 25 Mpa concrete | D27: m³ | E27: 4 | J27: 2210.20 | K27: 8840.8
A29: 4.1.2.8 | B29: PSG3.5.1 | C29: Extra over 4.1.2.2 - 4.1.2.5 for Penetron waterproofing additive | D29: m³ | E29: 145 | J29: 515.53 | K29: 74751.85
C30: as specified in PSG 3.5.1 at a rate of 0,8% by weight of cementitious
C31: content in the concrete mix
A32: 4.1.2.8 | B32: G8.3.1 | C32: High tensile reinforcement for floor, walls & roof | D32: kg | E32: =8800+4850+214+373+103+680+279+1 -> 15,300 | J32: 17.45 | K32: =E32*J32 -> 266985
A33: 4.1.2.9 | B33: G8.1.2.2 | C33: Mild steel reinforcement for floor, walls & roof | D33: kg | E33: =167+131+85+48+4 -> 435 | J33: 17.45 | K33: =E33*J33 -> 7590.75
A35: 4.1.2.10 | B35: G8.2.2 | C35: Smooth vertical form work to walls | D35: m² | E35: 155 | J35: 550.03 | K35: =E35*J35 -> 85254.65
A36: 4.1.2.11 | B36: G8.2.2 | C36: Smooth vertical form work to roof upstands & channel sides | D36: m² | E36: 115 | J36: 550.03 | K36: =E36*J36 -> 63253.45
A37: 4.1.2.12 | B37: G8.2.2 | C37: Smooth horizontal form work to underside of roof slab | D37: m² | E37: 230 | J37: 2424.88 | K37: =E37*J37 -> 557722.4
A39: 4.1.2.13 | B39: G8.4.4 | C39: Uniform wood float finish on roof slab | D39: m² | E39: 230 | J39: 25.27 | K39: =E39*J39 -> 5812.1
A41: 4.1.2.14 | B41: G8.1.1.2 | C41: Construct 25 mm x 25 mm chamfers on exposed concrete edges | D41: m | E41: 280 | J41: 111.19 | K41: =E41*J41 -> 31133.2
A42: 4.1.2.15 | B42: G8.1.1.2 | C42: Construct drip groof at roof slab | D42: m | E42: 65 | J42: 136.91 | K42: =E42*J42 -> 8899.15
A43: 4.1.2.16 | B43: G8.2.6 | C43: Form opening in wall for 700 mm Ø pipe and repair after
C44: positioning of pipe with 30MPa concrete and water proof | D44: no | E44: 1 | J44: 1649.28 | K44: =E44*J44 -> 1649.28
A45: 4.1.2.17 | B45: G8.2.6 | C45: Form opening in wall for 400 mm Ø pipes and repair after
C46: positioning of pipes with 30MPa concrete and water proof | D46: no | E46: 4 | J46: 1484.33 | K46: =E46*J46 -> 5937.32
A47: 4.1.2.18 | C47: Form 450 x 450 x 450 de-watering sump in floor | D47: no | E47: 1 | J47: 824.64 | K47: =E47*J47 -> 824.64
A49: 4.1.2.19 | C49: Apply 2 layers epoxy based floor paint on pump station floor | D49: m² | E49: 105 | J49: 63.27 | K49: =E49*J49 -> 6643.35
A50: 4.1.3 | C50: Building work
A51: 4.1.3.1 | C51: 230mm Wide brick work using solid clay bricks of 10MPa (min.) in
C52: class II mortar. Brickforce every 4th layer and damp course
C53: at the bottom. Pre-cast lintols over all door openings. | D53: m² | E53: 255 | J53: 596.47 | K53: =E53*J53 -> 152099.85
A55: 4.1.3.2 | C55: Extra over item 4.3.1 for facebrick on outside with bricks matching
C56: existing buildings on the site | D56: m² | E56: 210 | J56: 219.34 | K56: =E56*J56 -> 46061.4
A57: Schedule sub total carried forward to page 22 | K57: =SUM(K13:K56) -> 1729858.62
A58: Bill of Quantities page number 21
A64: Item | B64: Payment | C64: Item Description | D64: Unit | E64: Quantities | F64: Rate | G64: Amount
A65: number | B65: reference | G65: Rands.cents
B66: SANS | C66: Schedule 4 continued
B67: 1 200 | C67: =C8 -> Pump station and guard hut
C68: =C9 -> Drawing reference: P01 to P03
A69: =A58 -> -\schedule continued from page 21
A70: 4.1.4 | C70: Steel works
A72: 4.1.3.3 | C72: Extra over item 4.3.1 for plastering on inside with 1:5 sand/cement
C73: plaster and painted with one layer undercoat and 2 layers
C74: low-gloss enamel paint | D74: m² | E74: 295
C76: Manufacture, deliver and install the following:
A77: 4.1.4.1 | B77: HA8.3.1 | C77: 2,1m x 0,9m vandal proof security door with relative protection
C78: level of 5, including frame with hidden hinges and security lock,
C79: all from 304L stainless steel | D79: no | E79: 2 | J79: 15010.62 | K79: =E79*J79 -> 30021.24
A81: 4.1.4.2 | B81: HA8.3.1 | C81: 3m x 1,5m vandal proof security door with relative protection
C82: level of 5, including frame with hidden hinges and security lock,
C83: all from 304L stainless steel | D83: no | E83: 1 | J83: 24996.33 | K83: =E83*J83 -> 24996.33
A85: 4.1.4.3 | B85: HA8.3.1 | C85: 0,87m wide x 0,5m high vandal proof large airflow louvres with
C86: double bent blades and fitted with vermin proofing inside,
C87: all from 304L stainless steel | D87: no | E87: 12 | J87: 8160.39 | K87: =E87*J87 -> 97924.68
A89: 4.1.4.4 | B89: HA8.3.1 | C89: Overhead crane structure consisting of 152 x 152 x 23kg/m
C90: I-columns with 250 x 250 x16 baseplate, 254 x 146 x 31kg/m and
C91: 203 x 133 x 23kg/m I-beams, all from heavy duty galvinised | J91: 67.80 | K91: =E91*J91 -> 0
C92: grade W350 mild steel | D92: kg | E92: 3,600
A94: 4.1.5 | C94: Miscellaneous items
C95: Manufacture, deliver and install the following:
A97: 4.1.5.1 | B97: HA8.3.1 | C97: 200x75x25kg/m back to back channel crawl beam fixed
C98: to concrete roof slab and cantilevering 1,5m one end | D98: kg | E98: 250 | J98: 67.80 | K98: =E98*J98 -> 16950
A100: 4.1.5.2 | B100: HA8.3.1 | C100: 3 Ton single crane beam on hand geared trolleys, including 3 ton | D100: no | E100: 1 | J100: 5293.32 | K100: =E100*J100 -> 5293.32
C101: mechanical hoist
A103: 4.1.5.3 | B103: HA8.3.1 | C103: 3 Ton mechanical operated hoist for crawl beam | D103: no | E103: 1 | J103: 3998.08 | K103: =E103*J103 -> 3998.08
A105: 4.1.5.4 | B105: HA8.3.1 | C105: Stainless steel Mentis handrailing system, 1m high | D105: m | E105: 20 | J105: 712.92 | K105: =E105*J105 -> 14258.4
A107: 4.1.5.5 | B107: HA8.3.1 | C107: Stainless steel rectgrid trench grid with 40 x 40 angle frame
C108: to cover 450mm wide cable trench, in lengths of 2,0m max. | D108: m | E108: 24 | J108: 2204.46 | K108: =E108*J108 -> 52907.04
A110: 4.1.5.6 | B110: HA8.3.1 | C110: Stainless steel rectgrid trench grid with 40 x 40 angle frame | K110: =SUM(K70:K109) -> 246349.09
C111: to cover 700mm wide cable trench, in lengths of 2,0m max. | D111: m | E111: 5
A113: 4.1.5.7 | B113: HA8.3.1 | C113: 200x75x25kg/m back to back channel beam in cable
C114: trench to support MCC cabinets | D114: kg | E114: 1,000
A118: =A57+1 -> Schedule sub total carried forward to page 23
A119: =A58+1 -> Bill of Quantities page number 22
A125: Item | B125: Payment | C125: Item Description | D125: Unit | E125: Quantities | F125: Rate | G125: Amount
A126: number | B126: reference | G126: Rands.cents
B127: SANS | C127: =C7 -> Schedule 4
B128: 1 200 | C128: =C67 -> Pump station and guard hut
C129: =C68 -> Drawing reference: P01 to P03
A130: =A69+1 -> -\schedule continued from page 22
A132: 4.1.2.10 | C132: Supply and install 100Ø uPVC sleeves for electrical and
C133: telemetry cables | D133: m | E133: 60 | J133: 66.08 | K133: =E133*J133 -> 3964.8
A135: 4.1.2.11 | C135: Supply and install 100Ø uPVC lang radius bends for electrical
C136: and telemetry cables | D136: no | E136: 10 | J136: 88.20 | K136: =E136*J136 -> 882
A138: 4.2 | C138: Guard hut
A140: 4.2.1 | C140: Construct guard hut as detailed on drawing P03, complete
C141: with foundations, walls, doors and windows, roof slab and
C142: electrical and plumbing installations | D142: Item | E142: 1 | J142: 179,451.09 | K142: 50000
K176: =SUM(K133:K175) -> 54846.8
A178: schedule 4 total carried to summary page | K178: 0
A179: =A119+1 -> Bill of Quantities page number 23

Sheet 5 Fence
A1: =Works!A1 -> CONTRACT JW14402 | F1: =Works!F1 -> Date :08/09/2025 | J1: 40.00%
A2: JOBURG WATER
A3: =Works!A3 -> Turffontein Corridors of Freedom - Water Upgrade (Forest Hill New Tower and Pumpstation)
A5: Item | B5: Payment | C5: Item Description | D5: Unit | E5: Quantities | F5: Rate | G5: Amount
A6: number | B6: reference | G6: Rands.cents
B7: SANS | C7: Schedule 5
B8: 1 200 | C8: Security wall
A10: 5.1 | C10: Site clearance and Earthworks
A12: 5.1.1 | B12: C8.2.5 | C12: Take down existing concrete palisade fence, including concrete
C13: bases and existing security gate and dispose to dumping site
C14: found by Contractor | D14: m | E14: 460 | J14: 103.90 | K14: =E14*J14 -> 47794
A16: 5.1.2 | B16: C8.2.1 | C16: Clear and grub fence route, 2m wide and dispose to dumping | D16: m | E16: 460 | J16: 11.11 | K16: =E16*J16 -> 5110.6
C17: site found by Contractor
A19: 5.1.3 | B19: D8.3.2 | C19: Excavate in all materials and dispose for posts and ground beam | D19: m³ | E19: 140 | J19: 338.28 | K19: =E19*J19 -> 47359.2
C20: below fence route
A22: 5.2 | C22: Concrete works
A24: 5.2.1 | B24: G8.4.1 | C24: Formwork: Rough to sides of bases where required | D24: m² | E24: 100 | J24: 268.80 | K24: =E24*J24 -> 26880
A26: 5.2.2 | B26: G8.4.2 | C26: High tensile reinforcement in bases | D26: kg | E26: 8,000 | J26: 43.40 | K26: =E26*J26 -> 347200
A28: 5.2.3 | B28: G8.4.3 | C28: Cast from 25MPa concrete, 1,75m x 1,5m x0,35 bases for posts | D28: m³ | E28: 100
A30: 5.2.4 | C30: Supply and install 860mm high Precast Concrete Crash Barriers
C31: along street edge | D31: m | E31: 80
A33: 5.3 | C33: Precast wall
A35: 5.3.1 | B35: G8.4.1 | C35: Supply and install 460 x 460 x 4.0m long precast normal reinforced
C36: concrete columns from 35MPa concrete with cast-in steel baseplate
C37: and 4 x M20 holding down bolts. | D37: no | E37: 100 | J37: 1154.89 | K37: =E37*J37 -> 115489
B39: G8.4.3 | C39: Supply and install 150mm thick x 1,2m wide precast, prestressed
C40: hollowcore slabs from 60MPa concrete, cut in suitable lengths not
C41: exceeding 6m, stressed to 25MPa internal stress after losses | D41: m | E41: 1,700
C43: Supply and install razor wire flat wrap coil on top of precast boundary wall | D43: m | E43: 600
A45: 5.3.2 | C45: Electrical fence on inside, attached to 75 x 75 posts with
C46: energizer fitted in guard house | D46: m | E46: 460 | J46: 179.20 | K46: =E46*J46 -> 82432
A48: 5.3.3 | C48: Manual operated security sliding gate with same specification as
C49: aboce in 75 x 100 square tubing frame with wheels and rail.
C50: Slider support should be able to support 10 ton truck. | D50: no | E50: 2 | J50: 16800.00 | K50: =E50*J50 -> 33600
C51: Must be lockable with lock protection (anti-cut and anti-tamper)
A56: Schedule 5 total carried to summary page | K56: =SUM(K14:K55) -> 705864.8
A57: ='4 Pump'!A179+1 -> Bill of Quantities page number 24

Sheet 6 Chambers
A1: =Works!A1 -> CONTRACT JW14402 | F1: =Works!F1 -> Date :08/09/2025 | J1: 50.00%
A2: JOBURG WATER
A3: =Works!A3 -> Turffontein Corridors of Freedom - Water Upgrade (Forest Hill New Tower and Pumpstation)
A5: Item | B5: Payment | C5: Item Description | D5: Unit | E5: Quantities | F5: Rate | G5: Amount
A6: number | B6: reference | G6: Rands.cents
B7: SANS | C7: Schedule 6
B8: 1 200 | C8: Chambers
C9: Drawing references S06
A10: 6.1 | C10: Earthworks
A12: 6.1.1 | B12: D8.3.2a | C12: Excavate in bulk and dispose excess material to remote | D12: m³ | E12: 260 | J12: 32.42 | K12: =E12*J12 -> 8429.2
C13: site found by Contractor
A14: 6.1.2 | B14: D8.3.2.b1 | C14: Extra over for excavation in intermediate material | D14: m³ | E14: 20 | J14: 11.55 | K14: =E14*J14 -> 231
A15: 6.1.3 | B15: D8.3.2.b2 | C15: Extra over for excavation in hard rock material | D15: m³ | E15: 10 | J15: 376.47 | K15: =E15*J15 -> 3764.7
A16: 6.1.4 | B16: D8.3.5 | C16: Extra over excavations for working space | D16: m³ | E16: 113 | J16: 89.07 | K16: =E16*J16 -> 10064.91
A18: 6.2 | C18: Concrete works
A20: 6.2.1 | B20: G8.4.2 | C20: 75 mm thick blinding layer under floor slabs from 15 mPa concrete | D20: m² | E20: 100 | J20: 144.20 | K20: =E20*J20 -> 14420
A21: 6.2.2 | B21: G8.4.3 | C21: 250 mm floor slab from 30 Mpa concrete | D21: m³ | E21: 30 | J21: 2189.49 | K21: =E21*J21 -> 65684.7
A22: 6.2.3 | B22: G8.4.3 | C22: 250mm walls from 30 Mpa concrete | D22: m³ | E22: 25 | J22: 2430.46 | K22: =E22*J22 -> 60761.5
A23: 6.2.4 | B23: G8.4.3 | C23: 100mm Concrete work top in telemetry room | D23: m³ | E23: 5 | J23: 3385.70 | K23: =E23*J23 -> 16928.5
A25: 6.2.5 | B25: PSG3.5.1 | C25: Extra over 6.2.3 for Penetron waterproofing additive
C26: as specified in PSG 3.5.1 at a rate of 0,8% by weight of cementitious
C27: content in the concrete mix | D27: m³ | E27: 30 | J27: 515.53 | K27: =E27*J27 -> 15465.9
A29: 6.2.6 | B29: G8.4.3 | C29: Cast and install 200mm thick precast roof slabs in the following
C30: sizes, including formwork, openings, holes etc. with wood float
C31: finish: (Reinforcing measured elsewhere)
C32: 3.5m x 2,5m | D32: no | E32: 2 | J32: 7488.90 | K32: =E32*J32 -> 14977.8
C33: 3.5m x 1.75m | D33: no | E33: 10 | J33: 6770.89 | K33: =E33*J33 -> 67708.9
C34: 3.5m x 1.25m | D34: no | E34: 4 | J34: 2727.26 | K34: =E34*J34 -> 10909.04
C35: 2.5m x 1.75m | D35: no | E35: 2
A37: 6.2.7 | B37: G8.3.1 | C37: High tensile reinforcement for floor, walls & roof | D37: kg | E37: 9,950 | J37: 17.45 | K37: =E37*J37 -> 173627.5
A39: 6.2.8 | B39: G8.1.2.2 | C39: Mild steel reinforcement for floor, walls & roof | D39: kg | E39: 225 | J39: 17.45 | K39: =E39*J39 -> 3926.25
A41: 6.2.9 | B41: G8.2.2 | C41: Smooth vertical form work to walls | D41: m² | E41: 300 | J41: 550.03 | K41: =E41*J41 -> 165009
A43: 6.2.10 | B43: G8.4.4 | C43: Uniform wood float finish on floor slab | D43: m² | E43: 100 | J43: 25.27 | K43: =E43*J43 -> 2527
A45: 6.2.11 | B45: G8.1.1.2 | C45: Construct 25 mm x 25 mm chamfers on exposed concrete edges | D45: m | E45: 300 | J45: 111.19 | K45: =E45*J45 -> 33357
A47: 6.2.12 | B47: G8.2.6 | C47: Form opening in walls for 700mm Ø pipe and repair after
C48: positioning of pipe with 30MPa concrete and water proof | D48: no | E48: 1 | J48: 1649.28 | K48: =E48*J48 -> 1649.28
A50: 6.2.13 | B50: G8.2.6 | C50: Form opening in walls for 600mm Ø pipe and repair after
C51: positioning of pipe with 30MPa concrete and water proof | D51: no | E51: 2 | J51: 1236.96 | K51: =E51*J51 -> 2473.92
A53: 6.2.14 | B53: G8.2.6 | C53: Form opening in wall for 500 mm Ø pipes and repair after
C54: positioning of pipes with 30MPa concrete and water proof | D54: no | E54: 4 | J54: 907.10
A56: =A120 -> Schedule sub total carried forward to page 26 | K56: =SUM(K12:K54) -> 671916.1
A57: Bill of Quantities page number 25
A63: Item | B63: Payment | C63: Item Description | D63: Unit | E63: Quantities | F63: Rate | G63: Amount
A64: number | B64: reference | G64: Rands.cents
B65: SANS | C65: Schedule 6 continued
B66: 1 200 | C66: =C8 -> Chambers
C67: =C9 -> Drawing references S06
A68: =A56 -> -\schedule continued from page 26 | K68: 0
A70: 6.3 | C70: Miscellaneous items
A72: 6.2.15 | B72: G8.2.6 | C72: Form opening in wall for 350 mm Ø pipes and repair after
C73: positioning of pipes with 30MPa concrete and water proof | D73: no | E73: 2 | J73: 824.64 | K73: =E73*J73 -> 1649.28
A75: 6.2.16 | B75: G8.2.6 | C75: Form openings in wall for 500 x 300 vents | D75: no | E75: 18
A77: 6.2.17 | B77: G8.2.6 | C77: Form 400 x 400 x 650 de-watering sump in chambers | D77: no | E77: 6
A79: 6.3.1 | B79: HA8.3.1 | C79: Manufacture and install steel cat ladders to inside of chambers
C80: from stainless steel 3CR12 as detailed on drg. St04, as follows:
C82: 3.0m long | D82: no | E82: 3 | J82: 11462.56 | K82: =E82*J82 -> 34387.68
C84: 3.5m long | D84: no | E84: 1 | J84: 13218.16 | K84: =E84*J84 -> 13218.16
A86: 6.3.2 | B86: HA8.3.1 | C86: Steel cover to openings in pre-cast roof slabs, including frame,
C87: access lid, hinges, handles, lock etc from
C88: stainless steel 3CR12 as detailed on drg. St03 | D88: no | E88: 5 | J88: 9809.16 | K88: =E88*J88 -> 49045.8
A90: 6.3.4 | B90: HA8.3.1 | C90: Steel rectogrid cover to storm water junction box, including
C91: steel frome and hinged access cover, all from SS304L as detailed
C92: on drg S06 | D92: no | E92: 8 | J92: 4751.39 | K92: =E92*J92 -> 38011.12
A94: 6.3.5 | B94: HA8.3.1 | C94: 0.5m wide x 0.3m high vandal proof large airflow louvres with
C95: with double bent blades and fitted with vermin proofing inside,
C96: all from 304L stainless steel | D96: no | E96: 18 | J96: 3638.39 | K96: =E96*J96 -> 65491.02
A119: schedule 6 total carried to summary page | K119: =SUM(K68:K118) -> 201803.06
A120: =A57+1 -> Bill of Quantities page number 26

Sheet 7 Pipe
A1: =Works!A1 -> CONTRACT JW14402 | F1: =Works!F1 -> Date :08/09/2025
A2: JOBURG WATER
A3: =Works!A3 -> Turffontein Corridors of Freedom - Water Upgrade (Forest Hill New Tower and Pumpstation)
A5: Item | B5: Payment | C5: Item Description | D5: Unit | E5: Quantities | F5: Rate | G5: Amount
A6: number | B6: reference | G6: Rands.cents
B7: SANS | C7: Schedule 7
B8: 1 200 | C8: Pipe work
A9: 7.1 | C9: Pipe work to water tower - See dwg W01, W02 for layouts and W05 for pipe schedule
C11: Manufacture, corrosion protect, deliver and install the following items as specified in CITWIF. Lining: Solvent Free Epoxy, minimum dft 500 microns. Coating: Polyisobutene Visco (PIB) Elastic System with coating thickness of 2300 microns
C12: All steel pipe to be Grade X42, Pipe wall thickness for pipes with nominal diameter ≤500mm – t = 4.5mm, Pipe wall thickness for pipes with nominal diameter ⟩500mm - ≤700mm – t = 5.2mm, Pipe wall thickness for pipes with nominal diameter ⟩700mm - ≤900mm – t = 6.0mm
C13: Note for clarification – Pipe specials: Where JIS fittings is not available, Manufactured fittings will be allowed upon submission and approval of shop drawings, submitted by the contractor (manufactured as per BS 534-1990 as amended).
C14: Note for clarification – Corrosion protection of pipe couplings: System used shall be compatible with PIB coating system as specified for all pipework. Cost for material and labour for corrosion protection of couplings included in cost of pipe elements as per specification.
A16: 7.1.1 | C16: Item T01 - 500Ø FLANGED BELLMOUTH WITH PUDDLE FLANGE | D16: no | E16: 1
A17: 7.1.2 | C17: Item T02 - 500Ø EXPANSION JOINT COUPLING | D17: no | E17: 2
A18: 7.1.3 | C18: Item T03 - 500Ø PIPE, FLANGED BOTH ENDS | D18: no | E18: 12
A19: 7.1.4 | C19: Item T04 - 500Ø PIPE, FLANGED BOTH ENDS | D19: no | E19: 1
A20: 7.1.5 | C20: Item T05 - 500Ø LONG RADIUS FLANGED BEND EXTENDED WITH DUCKFOOT | D20: no | E20: 1
A21: 7.1.6 | C21: Item T06 - 500Ø PIPE, FLANGED BOTH ENDS | D21: no | E21: 4
A22: 7.1.7 | C22: Item T07 - 500Ø x 90° LONG RADIUS BEND ONE END FLANGED OTHER END PLAIN | D22: no | E22: 1
A23: 7.1.8 | C23: Item T08 - 500Ø PIPE, FLANGED BOTH ENDS | D23: no | E23: 1
A24: 7.1.9 | C24: Item T09 - 500Ø PIPE, FLANGED BOTH ENDS WITH PUDDLE FLANGE | D24: no | E24: 1
A25: 7.1.10 | C25: Item T10 - 500Ø PIPE, FLANGED BOTH ENDS | D25: no | E25: 1
A26: 7.1.11 | C26: Item T11 - 500Ø LONG RADIUS FLANGED BEND EXTENDED WITH DUCKFOOT | D26: no | E26: 1
A27: 7.1.12 | C27: Item T12 - 150Ø FLANGED BELLMOUTH WITH PUDDLE FLANGE | D27: no | E27: 1
A28: 7.1.13 | C28: Item T13 - 150Ø PIPE, FLANGED BOTH ENDS | D28: no | E28: 4
A29: 7.1.14 | C29: Item T15 - 150Ø PIPE, FLANGED BOTH ENDS | D29: no | E29: 1
A30: 7.1.15 | C30: Item T16 - 150Ø LONG RADIUS FLANGED BEND WITH DUCKFOOT | D30: no | E30: 1
A31: 7.1.16 | C31: Item T17 - 150Ø PIPE, FLANGED BOTH ENDS | D31: no | E31: 1
A32: 7.1.17 | C32: Item T18 - 150Ø LONG RADIUS FLANGED BEND | D32: no | E32: 1
A33: 7.1.18 | C33: Item T19 - 450Ø FLANGED BELLMOUTH | D33: no | E33: 1
A34: 7.1.19 | C34: Item T20 - 450Ø PIPE, FLANGED BOTH ENDS | D34: no | E34: 1
A35: 7.1.20 | C35: Item T21 - 450Ø PIPE, FLANGED BOTH ENDS WITH PUDDLE FLANGE | D35: no | E35: 1
A36: 7.1.21 | C36: Item T22 - 450Ø EXPANSION JOINT COUPLING | D36: no | E36: 1
A37: 7.1.22 | C37: Item T23 - 450Ø PIPE, FLANGED BOTH ENDS | D37: no | E37: 5
A38: 7.1.23 | C38: Item T24 - 450Ø PIPE, FLANGED BOTH ENDS | D38: no | E38: 1
A39: 7.1.24 | C39: Item T25 - 450Ø LONG RADIUS FLANGED BEND ONE END EXTENDED WITH DUCKFOOT | D39: no | E39: 1
A40: 7.1.25 | C40: Item T26 - 450Ø PIPE, FLANGED BOTH ENDS | D40: no | E40: 1
A41: 7.1.26 | C41: Item T27 - 450Ø TO 150Ø UNEQUAL FLANGED TEE | D41: no | E41: 1
A42: 7.1.27 | C42: Item T28 - 450Ø PIPE, FLANGED BOTH ENDS | D42: no | E42: 1
A43: 7.1.28 | C43: Paint items 1 to 27 above with re-coatable polyurethane paint | D43: Item | F43: Incl
A45: 7.2 | C45: Pipe work to pump station - see dwg W03 for layouts, W06 for pipe schedule
A47: 7.2.1 | C47: Item P01 - 700Ø FLANGED PIPE WITH PUDDLE FLANGE AND 50mm SOCKET | D47: no | E47: 1
A49: Schedule sub total carried forward to page 28
A50: Bill of Quantities page number 27
A56: Item | B56: Payment | C56: Item Description | D56: Unit | E56: Quantities | F56: Rate | G56: Amount
A57: number | B57: reference | G57: Rands.cents
B58: SANS | C58: Schedule 7 continued
B59: 1 200 | C59: =C8 -> Pipe work
A60: =A50 -> -\schedule continued from page 27
A62: 7.3 | C62: Pipe work to site works
A64: 7.2.2 | C64: Item P02 - 700ømm x 450mm x 45° ECCENTRIC Y-PIECE | D64: no | E64: 3
A65: 7.2.3 | C65: Item P03 - 700Ø FLANGED PIPE WITH 50mm SOCKET | D65: no | E65: 2
A66: 7.2.4 | C66: Item P04 - 700Ø x 400Ø CONCENTRIC FLANGED LONG REDUCER | D66: no | E66: 1
A67: 7.2.5 | C67: Item P05 - 400Ø BLANC FLANGE | D67: no | E67: 1
A68: 7.2.6 | C68: Item P07 - 450Ø FLANGED PIPE WITH 3 x 50mm SOCKETS | D68: no | E68: 3
A69: 7.2.7 | C69: Item P08 - 450Ø x 300Ø ECCENTRIC FLANGED LONG REDUCER | D69: no | E69: 3
A70: 7.2.8 | C70: Item P09 - 400Ø x 250Ø CONCENTRIC FLANGED REDUCER | D70: no | E70: 3
A71: 7.2.9 | C71: Item P10 - 400Ø x 90° FLANGED LONG RADIUS JIS ELBOW. | D71: no | E71: 3
A72: 7.2.10 | C72: Item P11 - 400Ø FLANGED PIPE WITH 3 x 50mm SOCKETS | D72: no | E72: 3
A73: 7.2.11 | C73: Item P13 - 400Ø ONE-END FLANGED PIPE WITH No.4 80 x 60 x 6mm ANGLE CLEATS | D73: no | E73: 3
A74: 7.2.12 | C74: Item P15 - 400Ø FLANGED PIPE | D74: no | E74: 3
A75: 7.2.13 | C75: Item P17 - 400Ø FLANGED PIPE WITH PUDDLE FLANGE | D75: no | E75: 4
A76: 7.2.14 | C76: Item P18 - 400Ø FLANGED PIPE | D76: no | E76: 3
A77: 7.2.15 | C77: Item P19 - 4400Ø x 90° FLANGED LONG RADIUS JIS ELBOW | D77: no | E77: 4
A78: 7.2.16 | C78: Item P20 - 700Ømm x 400mm SWIFT T-PIECE | D78: no | E78: 4
A79: 7.2.17 | C79: Item P21 -700Ø FLANGED PIPE | D79: no | E79: 3
A80: 7.2.18 | C80: Item P22 - 700Ø FLANGED PIPE | D80: no | E80: 2
A81: 7.2.19 | C81: Paint items 1 to 18 above with re-coatable polyurethane paint | D81: Item | F81: Incl
C83: See dwg W04 for pipe layout and W07 to W08 for pipe schedules
C84: 1. Pipe work - Sution from existing 700dia pipe
A85: 7.3.1 | C85: Item 1.1 - 700Ø FLANGE WELDED SKEW ONTO EXISTING PIPE | D85: no | E85: 1
A86: 7.3.2 | C86: Item 1.2 - 700Ø PIPE, FLANGED BOTH ENDS ONE SIDE WELDED SKEW MATCHING EXISTING | D86: no | E86: 1
A87: 7.3.3 | C87: Item 1.3 - 700Ø PIPE, FLANGED BOTH ENDS | D87: no | E87: =4+9 -> 13
A88: 7.3.4 | C88: Item S01- 700Ø LONG RADIUS FLANGED | D88: no | E88: 1
C90: 2. Pipe work - 700dia pipe aligned with pump station
A91: 7.3.5 | C91: Item 2.1 - 700Ø PIPE, FLANGED BOTH ENDS | D91: no | E91: 1
A92: 7.3.6 | C92: Item 2.2 - 700Ø TO 450Ø FLANGED UNEQUAL TEE | D92: no | E92: 4
A93: 7.3.7 | C93: Item 2.3 - 700Ø PIPE, FLANGED BOTH ENDS | D93: no | E93: 1
A94: 7.3.8 | C94: Item 2.5 - 700Ø PIPE, FLANGED BOTH ENDS | D94: no | E94: 1
A95: 7.3.9 | C95: Item 2.6 - 700Ø PIPE, FLANGED BOTH ENDS | D95: no | E95: 1
A96: 7.3.10 | C96: Item 2.7 - 700Ø PIPE, FLANGED BOTH ENDS | D96: no | E96: 1
A97: 7.3.11 | C97: Item 2.8 - 450Ø LONG RADIUS FLANGED | D97: no | E97: 1
A98: 7.3.12 | C98: Item 2.9 - 450Ø PIPE, FLANGED BOTH ENDS | D98: no | E98: 1
A99: 7.3.13 | C99: Item 2.11 - 450Ø PIPE, FLANGED BOTH ENDS | D99: no | E99: 1
A100: 7.3.14 | C100: Item 2.12 - 700Ø TO 450Ø ECCENTRIC FLANGED REDUCER | D100: no | E100: 1
A101: 7.3.15 | C101: Item 2.13 - 450Ø PIPE, FLANGED BOTH ENDS | D101: no | E101: 4
A102: 7.3.16 | C102: Item 2.14 - 700Ø PIPE, FLANGED BOTH ENDS | D102: no | E102: 1
A103: 7.3.17 | C103: Item 2.15 - 700Ø PIPE, FLANGED BOTH ENDS | D103: no | E103: 1
A104: 7.3.18 | C104: Item S02 - 700Ø LONG RADIUS FLANGED | D104: no | E104: 1
C106: 3. Pipe work through outlet chamber to new tower inlet
A107: 7.3.19 | C107: Item 3.1 - 700Ø PIPE, FLANGED BOTH ENDS | D107: no | E107: 1
A108: 7.3.20 | C108: Item 3.2 - 700Ø PIPE, FLANGED BOTH ENDS WITH PUDDLE FLANGE | D108: no | E108: 1
A109: 7.3.21 | C109: Item 3.3 - 700Ø TO 600Ø ECCENTRIC FLANGED REDUCER | D109: no | E109: 1
A110: 7.3.22 | C110: Item 3.4 - 600Ø PIPE, FLANGED BOTH ENDS | D110: no | E110: 1
A111: 7.3.23 | C111: Item 3.6 - 600Ø PIPE, FLANGED BOTH ENDS | D111: no | E111: 1
A112: 7.3.24 | C112: Item 3.7 - 600Ø PIPE, FLANGED BOTH ENDS WITH PUDDLE FLANGE | D112: no | E112: 1
A114: =A49+1 -> Schedule sub total carried forward to page 29
A115: =A50+1 -> Bill of Quantities page number 28
A121: Item | B121: Payment | C121: Item Description | D121: Unit | E121: Quantities | F121: Rate | G121: Amount
A122: number | B122: reference | G122: Rands.cents
B123: SANS | C123: Schedule 7 continued
B124: 1 200 | C124: =C59 -> Pipe work
A125: =A115 -> -\schedule continued from page 28
A126: 7.3 | C126: Pipe work to site works
A128: 7.3.25 | C128: Item 3.8 - 600Ø PIPE, FLANGED BOTH ENDS | D128: no | E128: 2
A129: 7.3.26 | C129: Item 3.9 - 600Ø SHORT RADIUS FLANGED BEND | D129: no | E129: 2
A130: 7.3.27 | C130: Item 3.10 - 600Ø TO 250Ø FLANGED TEE | D130: no | E130: 1
A131: 7.3.28 | C131: Item 3.11 - 250Ø PIPE, FLANGED BOTH ENDS | D131: no | E131: 1
A132: 7.3.29 | C132: Item 3.13 - 600Ø PIPE, FLANGED BOTH ENDS WITH PUDDLE FLANGE | D132: no | E132: 1
A133: 7.3.30 | C133: Item 3.14 - 600Ø PIPE, FLANGED BOTH ENDS | D133: no | E133: 1
A134: 7.3.31 | C134: Item 3.15 - 600Ø PIPE, FLANGED BOTH ENDS | D134: no | E134: 2
A135: 7.3.32 | C135: Item 3.16 - 600Ø TO 350Ø FLANGED, GUSSETTED TEE | D135: no | E135: 1
A136: 7.3.33 | C136: Item S03 - 600mm x 500mm SWIFT T-PIECE | D136: no | E136: 1
A137: 7.3.34 | C137: Item 3.17 - 600Ø TO 500Ø ECCENTRIC FLANGED REDUCER | D137: no | E137: 1
A138: 7.3.35 | C138: Item 3.18 - 500Ø PIPE, FLANGED BOTH ENDS | D138: no | E138: 1
A139: 7.3.36 | C139: Item 3.20 - 500Ø PIPE, FLANGED BOTH ENDS | D139: no | E139: 1
A140: 7.3.37 | C140: Item 3.21 - 500Ø PIPE, FLANGED BOTH ENDS WITH PUDDLE FLANGE | D140: no | E140: 1
A141: 7.3.38 | C141: Item 3.22 - 500Ø PIPE, FLANGED BOTH ENDS | D141: no | E141: 1
A142: 7.3.39 | C142: Item 3.23 - 500Ø LONG RADIUS 30° BEND FLANGED BOTH ENDS | D142: no | E142: 1
A143: 7.3.40 | C143: Item 3.24 - 500Ø PIPE, FLANGED BOTH ENDS | D143: no | E143: 1
C145: 4. Pipe work to existing 600dia pipe to existing tower and network
A146: 7.3.41 | C146: Item 4.1 - 500Ø PIPE, FLANGED BOTH ENDS | D146: no | E146: 1
A147: 7.3.42 | C147: Item 4.3 - 500Ø PIPE, FLANGED BOTH ENDS | D147: no | E147: 1
A148: 7.3.43 | C148: Item 4.4 - 500Ø PIPE, FLANGED BOTH ENDS WITH PUDDLE FLANGE | D148: no | E148: 1
A149: 7.3.44 | C149: Item 4.5 - 500Ø PIPE, FLANGED BOTH ENDS | D149: no | E149: 1
A150: 7.3.45 | C150: Item 4.6 - 500Ø PURPOSE MADE Z-PIECE FROM 2 x SHORT RADIUS, FLANGED BOTH ENDS | D150: no | E150: 1
A151: 7.3.46 | C151: Item 4.7 - 500Ø PIPE, FLANGED BOTH ENDS | D151: no | E151: 1
A152: 7.3.47 | C152: Item S04 - 600Ø TO 500Ø x 60° ECCENTRIC Y-PIECE, FLANGED ALL ENDS | D152: no | E152: 1
C154: 5. Pipe work - existing 600dia pipe connecting new pumpstation existing tower/network
A155: 7.3.48 | C155: Item 5.1 - 600Ø FLANGE WELDED ONTO EXISTING PIPE | D155: no | E155: 2
A157: 7.3.49 | C157: Paint items 1 to 48 above with re-coatable polyurethane paint | D157: Item | F157: Incl
C159: 6. Pipe work - Overflow and scour from new tower to junction box
A160: 7.3.50 | C160: Item 6.1 - 450Ø PIPE, FLANGED BOTH ENDS | D160: no | E160: 1
A161: 7.3.51 | C161: Item 6.2 - 600Ø PIPE ONE END FLANGED OTHER END PLAIN WITH PUDDLE FLANGE | D161: no | E161: 1
C163: 7. Pipe work - Outlet from new tower to existing 700dia pipe network
A164: 7.3.52 | C164: Item 7.1 - 500Ø PIPE, FLANGED BOTH ENDS | D164: no | E164: 1
A165: 7.3.53 | C165: Item 7.2 - 500Ø LONG RADIUS 45° BEND FLANGED BOTH ENDS | D165: no | E165: 1
A166: 7.3.54 | C166: Item 7.3 - 500Ø PIPE, FLANGED BOTH ENDS | D166: no | E166: 1
A167: 7.3.55 | C167: Item 7.4 - 500Ø PIPE, FLANGED BOTH ENDS | D167: no | E167: 2
A168: 7.3.56 | C168: Item 7.5 - 500Ø PIPE, FLANGED BOTH ENDS | D168: no | E168: 2
A169: 7.3.57 | C169: Item 7.7 - 500Ø PIPE, FLANGED BOTH ENDS | D169: no | E169: 1
A170: 7.3.58 | C170: Item 7.8 - 500Ø PIPE, FLANGED BOTH ENDS | D170: no | E170: 1
A171: 7.3.59 | C171: Item 7.9 - 500Ø LONG RADIUS FLANGED | D171: no | E171: 1
A172: 7.3.60 | C172: Item 7.10 - 500Ø PIPE FLANGED ONE END AND CURVED PLATE OTHER END
C173: TO FIT 700mm EXISTING PIPE | D173: no | E173: 1
A175: =A114+1 -> Schedule sub total carried forward to page 30
A176: =A115+1 -> Bill of Quantities page number 29
A182: Item | B182: Payment | C182: Item Description | D182: Unit | E182: Quantities | F182: Rate | G182: Amount
A183: number | B183: reference | G183: Rands.cents
B184: SANS | C184: Schedule 7 continued
B185: 1 200 | C185: =C124 -> Pipe work
A186: =A176 -> -\schedule continued from page 29
C189: 8. Pipe work to reservoir bypass
A190: 7.3.61 | C190: Item 8.1 - 350Ø PIPE, FLANGED BOTH SIDES | D190: no | E190: 1
A191: 7.3.62 | C191: Item 8.2 - 350Ø PIPE, FLANGED BOTH SIDES WITH PUDDLE FLANGE | D191: no | E191: 1
A192: 7.3.63 | C192: Item 8.3 - 350Ø PURPOSE MADE Z-PIECE FROM 2 x SHORT RADIUS JIS BENDS | D192: no | E192: 1
A193: 7.3.64 | C193: Item 8.4 - 350Ø PIPE, FLANGED BOTH SIDES | D193: no | E193: 1
A194: 7.3.65 | C194: Item 8.5 - 350Ø PIPE, FLANGED BOTH SIDES WITH PUDDLE FLANGE | D194: no | E194: 2
A195: 7.3.66 | C195: Item 8.6 - 350Ø PIPE, FLANGED BOTH SIDES | D195: no | E195: =4+7 -> 11
A196: 7.3.67 | C196: Item 8.7 - 350Ø PIPE, FLANGED BOTH SIDES | D196: no | E196: 1
A197: 7.3.68 | C197: Item 8.8 - 350Ø x 50° PURPOSE MADE ECCENTRIC Y-PIECE | D197: no | E197: 1
A198: 7.3.69 | C198: Item 8.9 - 350Ø FLANGE WELDED ONTO EXISTING PIPE | D198: no | E198: 2
A200: 7.3.70 | C200: Paint items 50 to 69 above with re-coatable polyurethane paint | D200: Item | F200: Incl.
A202: 7.3.71 | C202: Provisional sum third party inspections on pipe work | D202: Prov | E202: 1 | F202: 250,000.00 | G202: 250,000.00
A203: 7.3.72 | B203: A8.5a | C203: Provisional sums cathodic protection | D203: Prov | E203: 1 | F203: 1,000,000.00 | G203: 1,000,000.00
A205: 7.4 | C205: Connections to existing pipe work
A207: 7.4.1 | C207: Cut into 75Ø scour to existing tower and connect to new 150Ø
C208: balancing pipe | D208: no
A209: 7.4.2 | C209: Cut into existing 700Ø underground pipe and connect new
C210: 700Ø pipe supply from RW reservoir | D210: no
A211: 7.4.3 | C211: Cut into existing 700Ø underground pipe and connect new
C212: 500Ø pipe (new tower outlet) | D212: no
A213: 7.4.4 | C213: Cut into existing 350Ø underground pipe and connect new
C214: 350Ø pipe (RW bypass to towers) | D214: no
A215: 7.4.5 | C215: Cut into existing 600Ø underground pipe and connect new
C216: 500Ø pipe (old tower inlet) | D216: no
A217: 7.4.6 | C217: Cut into existing 350Ø underground pipe and connect new
C218: 350Ø pipe | D218: no
A220: 7.5 | C220: Earthworks to new pipe works
A222: 7.5.1 | B222: 8.3.2(a) | C222: Trench excavate in soft material to
C223: authorised trench width (1200mm) for
C224: depth intervals:
C225: Over and Up to
C226: 1,0 m 2,5 m | D226: m
A228: 7.5.2 | B228: 8.3.2(b) | C228: Extra-over for excavation in: (provisional)
C229: Intermediate material | D229: m3
C230: Hard rock material | D230: m3
A232: 7.5.3 | B232: SABS | C232: PIPE BEDDING & BACKFILLING
B233: 1200 LB | C233: Granular material (G5) for bedding layer and cradle with material
C234: from trench excavations, compacted to 90% Mod AASHTO | D234: m3
A236: 7.5.4 | C236: Selected fill material (G5) for blanket layer including placing
C237: and compaction to 90% Mod AASHTO | D237: m3
A239: =A175+1 -> Schedule sub total carried forward to page 31
A240: =A176+1 -> Bill of Quantities page number 30
A246: Item | B246: Payment | C246: Item Description | D246: Unit | E246: Quantities | F246: Rate | G246: Amount
A247: number | B247: reference | G247: Rands.cents
B248: SANS | C248: Schedule 7 continued
B249: 1 200 | C249: =C185 -> Pipe work
A250: =A240 -> -\schedule continued from page 30
A253: 7.5.5 | C253: General backfill material from trench excavations
... 11 more rows

Sheet 8 Special Equipment
A1: =Works!A1 -> CONTRACT JW14402 | F1: =Works!F1 -> Date :08/09/2025 | J1: 40.00%
A2: JOBURG WATER
A3: =Works!A3 -> Turffontein Corridors of Freedom - Water Upgrade (Forest Hill New Tower and Pumpstation)
A5: Item | B5: Payment | C5: Item Description | D5: Unit | E5: Quantities | F5: Rate | G5: Amount
A6: number | B6: reference | G6: Rands.cents
B7: SANS | C7: Schedule 8
B8: 1 200 | C8: Special equipment
A9: 8.1 | C9: Pumps
C11: NOTE: SEE PARTICULAR SPECIFICATION PP: PUMPS FOR
C12: COMPLETE SPECIFICATION FOR THE PUMP SETS.
C14: Supply following pumps with duty point 833m³/hr @ 35m head:
C15: Horizontal volute casing, single-stage pumps, with ratings and
C16: main dimensions to EN 733, long-coupled in back pull-out design
C17: or similar. Pump shall flanged to SANS 1123 table 1600/3
C18: and fitted with digital pump meter.
C19: Pump shall be fitted with a 3-phase 110kW WEG motor suitable
C20: to be used in conjunction with a VSD, and fitted with all
C21: required instrumentaion as per Partictular Specification PP.
C22: The tendered price shall include the supply, installation, testing
C23: and commissioning of the complete pump set.
C24: Full technical specifications of the proposed pump shall
C25: be submitted with the Tender. | D25: no | E25: 3 | J25: =672192/2 -> 336096.00 | K25: =E25*J25 -> 1008288
A27: 8.2 | C27: Flow meters
C29: SUPPLY AND INSTALL THE FOLLOWING FULLBORE TURBINE
C30: BULK FLOW METERS, FLANGED TO SANS 1123 TABLE 1600/3
C31: FITTED WITH 4 - 20 mA TRANSMITTERS:
A33: 8.2.1 | C33: 600mmØ Full bore flow in inlet chamber | D33: no | E33: 1 | J33: 84988.08 | K33: =E33*J33 -> 84988.08
A35: 8.2.2 | C35: 350mmØ Flow meter on reservoir bypass line | D35: no | E35: 1 | J35: 51,444.39 | K35: =E35*J35 -> 51444.39
C37: SUPPLY AND INSTALL THE FOLLOWING CLAMP-ON ULTRASONIC FLOW METERS WITH 4 - 20 mA TRANSMITTERS: | J37: 51444.39 | K37: =E37*J37 -> 0
A39: 8.2.3 | C39: 500mmØ on inlet & outlet to new tower | D39: no | E39: 2 | J39: 51444.39
A41: 8.3.4 | C41: 300mmØ on inlet & outlet to old tower | D41: no | E41: 2 | J41: 51444.39
A43: 8.3 | C43: Pressure reducing valves
C45: SUPPLY AND INSTALL THE FOLLOWING SINGER S206-PR OR
C46: EQUIVALENT PRESSURE REDUCING VALVES, FLANGED TO
C47: SANS 1123 TABLE 1600/3:
A49: 8.3.1 | C49: 350mmØ Singer PRV | D49: no | E49: 2 | J49: 125613.21 | K49: =E49*J49 -> 251226.42
A51: 8.4 | C51: VARIABLE SPEED DRIVES
A53: 8.4.1 | C53: Supply variable speed drives suitable to control the speed of
C54: 3 phase 380V 110kW induction motors.
C55: The tendered price shall include the supply, installation, testing | D55: Measured in Electrical Bill item 12.5.1 | J55: 99000 | K55: =E55*J55 -> 0
C56: and commissioning of the complete pump set.
C57: Full technical specifications of the proposed controller shall
C58: be submitted with the Tender.
A60: Schedule sub total carried forward to page 33 | K60: =SUM(K25:K58) -> 1395946.89
A61: Bill of Quantities page number 32
A67: Item | B67: Payment | C67: Item Description | D67: Unit | E67: Quantities | F67: Rate | G67: Amount
A68: number | B68: reference | G68: Rands.cents
B69: SANS | C69: =C7 -> Schedule 8
B70: 1 200 | C70: =C8 -> Special equipment
A71: =A60-1 -> -\schedule continued from page 32
A72: 8.5 | C72: Non-return valves
A74: 8.5.1 | C74: 450mmØ Diaphragm TOP-STOP non-return valve flanged to
C75: SANS 1123 table 1600/3 | D75: no | E75: 1 | J75: 134,673
A77: 8.5.2 | C77: 350mmØ Diaphragm TOP-STOP non-return valve flanged to | D77: no | E77: 1
C78: SANS 1123 table 1600/3
A80: 8.5.3 | C80: 400mmØ Slanted seat Tilting Disk Valve | D80: no | E80: 3 | J80: 90,025.53
A82: 8.6 | C82: Isolating valves
C84: Supply and install the following Wedge-type isolating gate
C85: valve, left-hand closing and non-rising spindle
A87: 8.6.1 | C87: 700mmØ Gate valve with gearbox | D87: no | E87: 1 | J87: 153,901.16
A89: 8.6.2 | C89: 500mmØ Gate valve with gearbox | D89: no | E89: 3 | J89: 119,029.80
A91: 8.6.3 | C91: 450mmØ Gate valve with gearbox | D91: no | E91: 3 | J91: 97,582.84
A93: 8.6.4 | C93: 400mmØ Gate valve with gearbox | D93: no | E93: 3 | J93: 53,294.70
A95: 8.6.5 | C95: 350mmØ Gate valve with gearbox | D95: no | E95: 1 | J95: 30,000.00
A97: 8.6.6 | C97: 150mmØ Gate valve with handwheel | D97: no | E97: 2 | J97: 27,527.86
A99: 8.7 | C99: Expansion joint couplings
C101: Supply and install the following POSIFLEX or similar
C102: expansion joint couplings:
A104: 8.7.1 | C104: 500mmØ | D104: no | E104: 2 | J104: 18,011.79
A105: 8.7.2 | C105: 450mmØ | D105: no | E105: 1 | J105: 6,477.18
A106: 8.7.3 | C106: 150mmØ | D106: no | E106: 1 | J106: 3,525.71
A108: 8.8 | C108: Fexible couplings
C110: Supply and install the following flanged adaptors couplings with
C111: restrainer bolts
A112: 8.8.1 | C112: 700mmØ | D112: no | E112: 1 | J112: 4,770.97
A113: 8.8.2 | C113: 500mmØ | D113: no | E113: 1
A114: 8.8.3 | C114: 450mmØ | D114: no | E114: 4 | J114: 4,078.67
A115: 8.8.4 | C115: 400mmØ | D115: no | E115: 3 | J115: 4,078.67
A116: 8.8.5 | C116: 350mmØ | D116: no | E116: 1 | J116: 4,770.97
A118: 8.9 | C118: Air Valve
C120: 150mmØ PN16 air release valve including
C121: 150mmØ isolating valve with handwheel
C122: flanged to SANS 1123 table 1600/3 | D122: no | E122: 2 | J122: 28556.79
A124: schedule 8 total carried to summary page
A125: =A61+1 -> Bill of Quantities page number 33

Sheet 9 Road
A1: =Works!A1 -> CONTRACT JW14402 | F1: =Works!F1 -> Date :08/09/2025 | J1: 70.00%
A2: JOBURG WATER
A3: =Works!A3 -> Turffontein Corridors of Freedom - Water Upgrade (Forest Hill New Tower and Pumpstation)
A5: Item | B5: Payment | C5: Item Description | D5: Unit | E5: Quantities | F5: Rate | G5: Amount
A6: number | B6: reference | G6: Rands.cents
B7: SANS | C7: Schedule 9
B8: 1 200 | C8: Road works, kerbing & storm water
C9: Drawing reference S03 & S04
A11: 9.1 | C11: Road works
A13: 9.1.1 | B13: DM8.3.7a | C13: Cut in all materials to stockpile | D13: m³ | E13: 750 | J13: 26.91 | K13: =E13*J13 -> 20182.5
A15: 9.1.2 | B15: DM8.3.7b | C15: Extra-over item 9.1.1 for intermediate excavations | D15: m³ | E15: 230 | J15: 11.55 | K15: =E15*J15 -> 2656.5
A17: 9.1.3 | B17: DM8.3.7c | C17: Extra-over item 9.1.1 for hard excavations | D17: m³ | E17: 380 | J17: 376.47 | K17: =E17*J17 -> 143058.6
A19: 9.1.4 | B19: DM8.3.3 | C19: Roadbed preparation compacted to 93% mod AASHTO | D19: m³ | E19: 210 | J19: 67.87 | K19: =E19*J19 -> 14252.7
A21: 9.1.5 | B21: DM8.3.5 | C21: Selected layer from stockpile compacted to 95% mod AASHTO | D21: m³ | E21: 210 | J21: 94.57 | K21: =E21*J21 -> 19859.7
A23: 9.1.6 | B23: ME8.3.3 | C23: Construct subbase with G6 material from stockpile and compact
C24: to 97% mod AASHTO. | D24: m³ | E24: 210 | J24: 110.00 | K24: =E24*J24 -> 23100
A26: 9.1.7 | B26: ME8.3.3 | C26: Construct base with G5 material from stockpile and compact
C27: to 97% mod AASHTO, stabilized with 3% cement by weight | D27: m³ | E27: 210 | J27: 148.86 | K27: =E27*J27 -> 31260.6
A29: 9.1.8 | B29: ME8.3.8 | C29: Stabilizing agent: Portland cement | D29: ton | E29: 13 | J29: 2257.25 | K29: =E29*J29 -> 29344.25
A31: 9.1.8 | C31: Apply weed killer and insecticide soil poisening over compacted
C32: base layer | D32: m² | E32: 1,370 | J32: 11.03 | K32: =E32*J32 -> 15111.1
A34: 9.1.9 | B34: MJ8.2.2 | C34: Construct paving complete with 80mm interlocking blocks
C35: using SABS approved blocks on 25mm sand bedding | D35: m² | E35: 1,370 | J35: 327.10 | K35: =E35*J35 -> 448127
A37: 9.1.10 | B37: MJ8.2.3 | C37: Cut units to fit edge restraint | D37: m | E37: 360 | J37: 21.00 | K37: =E37*J37 -> 7560
A39: 9.2 | C39: Kerbings
B41: MK8.2.1 | C41: Concrete kerbing with the following pre-cast kerbing:
A42: 9.2.1 | C42: a) Figure 7 semi-mountable kerbs | D42: m | E42: 60 | J42: 229.02 | K42: =E42*J42 -> 13741.2
A44: 9.2.2 | C44: b) Figure 8 mountable kerbs | D44: m | E44: 300 | J44: 232.49 | K44: =E44*J44 -> 69747
A55: Schedule sub total carried forward to page 35 | K55: =SUM(K13:K54) -> 838001.15
A56: Bill of Quantities page number 34
A62: Item | B62: Payment | C62: Item Description | D62: Unit | E62: Quantities | F62: Rate | G62: Amount
A63: number | B63: reference | G63: Rands.cents
B64: SANS | C64: Schedule 9 continued
B65: 1 200 | C65: =C8 -> Road works, kerbing & storm water
C66: =C9 -> Drawing reference S03 & S04
A67: =A56 -> -\schedule continued from page 34
A69: 9.3 | C69: Stormwater drainage
A71: 9.3.1 | B71: 8.3.2(a) | C71: Trench excavate in soft material to authorised trench width
C72: for depth intervals:
A73: 9.3.2 | C73: 1,0 m 1,5 m | D73: m3 | E73: 80 | J73: 111.85 | K73: =E73*J73 -> 8948
A75: 9.3.3 | C75: 1,5 m 2,0 m | D75: m3 | E75: 300 | J75: 134.22 | K75: =E75*J75 -> 40266
A77: 9.3.4 | C77: 2,0 m 2,5 m | D77: m3 | E77: 0 | G77: rate only | J77: 155.47
A79: 9.3.5 | B79: 8.3.2(b) | C79: Extra-over for excavation in: (provisional)
C81: Intermediate material | D81: m3 | E81: 110 | J81: 11.55 | K81: =E81*J81 -> 1270.5
C83: Hard rock material | D83: m3 | E83: 190 | J83: 376.47 | K83: =E83*J83 -> 71529.3
A85: 9.3.6 | B85: LE8.2.1 | C85: Supply and lay 450Ø class 75D stormwater pipes | D85: m | E85: 210 | J85: 543.23 | K85: =E85*J85 -> 114078.3
A87: 9.3.7 | B87: LE8.2.8 | C87: Supply and install S/W junction boxes | D87: no | E87: 6 | J87: 11123.38 | K87: =E87*J87 -> 66740.28
A89: 9.3.8 | B89: LE8.2.8 | C89: Supply and install 3m wide kerb inlet | D89: no | E89: 1 | J89: 25584.98 | K89: =E89*J89 -> 25584.98
A91: 9.3.9 | C91: Construct s/w outlet headwall on 450Ø pipe | D91: no | E91: 1 | J91: 7500.00 | K91: =E91*J91 -> 7500
K116: =SUM(K71:K115) -> 335917.36
A118: schedule 9 total carried to summary page | K118: 0
A119: =A56+1 -> Bill of Quantities page number 35

Sheet 10 Alterations
A1: =Works!A1 -> CONTRACT JW14402 | F1: =Works!F1 -> Date :08/09/2025 | J1: 60.00%
A2: JOBURG WATER
A3: =Works!A3 -> Turffontein Corridors of Freedom - Water Upgrade (Forest Hill New Tower and Pumpstation)
A5: Item | B5: Payment | C5: Item Description | D5: Unit | E5: Quantities | F5: Rate | G5: Amount
A6: number | B6: reference | G6: Rands.cents
B7: SANS | C7: Schedule10
B8: 1 200 | C8: Alterations and refurbishment of existing buildings
A9: 10.1 | C9: Dismantle. Remove and dispose the following:
C11: Dismantle, remove and dispatch to Joburg Water's designated
C12: depot:
A14: 10.1.1 | C14: All above ground pipes ranging from 225mmØ to 600mmØ
C15: under and around existing tower, including valves, meters, etc. | D15: Item | E15: 1
A17: 10.1.2 | C17: All pipe work in existing pump station mainly 450mmØ,
C18: including valves and other equipment | D18: Item | E18: 1
A20: 10.1.3 | C20: Carefully remove existing pump sets and deliver to designated
C21: depot. | D21: No | E21: 3
A23: 10.1.4 | C23: Dismantle overhead crane beam and stantions | D23: Item | E23: 1
A25: 10.1.5 | C25: Remove security door to existing tower | D25: Item | E25: 1
A27: 10.1.5 | C27: Dismantle, remove and dispose staircase in existing tower | D27: Item | E27: 1
A29: 10.1.6 | C29: Disconnect and remove electrical cables in existing tower | D29: Item | E29: 1
K51: 300000
A52: Schedule sub total carried forward to page 37
A53: Bill of Quantities page number 36
A59: Item | B59: Payment | C59: Item Description | D59: Unit | E59: Quantities | F59: Rate | G59: Amount
A60: number | B60: reference | G60: Rands.cents
B61: SANS | C61: Schedule10 Continue
B62: 1 200 | C62: Alterations and refurbishment of existing buildings
A63: =A53 -> -\schedule continued from page 36
A65: 10.2 | C65: Steel works
C67: Manufacture, deliver and install the following:
A68: 10.2.1 | B68: HA8.3.1 | C68: Steel staircase in main shaft including handrails, all
C69: from stainless steel 304 L as detailed on drg. St01 | D69: Item | E69: 1
A71: 10.2.2 | B71: HA8.3.1 | C71: Steel cat ladder in access shaft from SS 304L as per drg. St02 | D71: Item | E71: 1
A73: 10.2.3 | B73: HA8.3.1 | C73: Steel cat ladder to inside of tank from SS 304L as per drg. St03 | D73: Item | E73: 1
A75: 10.2.4 | B75: HA8.3.1 | C75: 2,1m x 0,9m vandal proof security door with relative protection
C76: level of 5, including frame with hidden hinges and security lock,
C77: all from 304L stainless steel | D77: no | E77: 1
A79: 10.3 | C79: Building work
A81: 10.3.1 | C81: Break out pipes and other equipment in existing pump station, repair brickwork
C82: repaint walls and prepare for new generator | D82: Item | E82: 1
A84: 10.3.2 | C84: Fill up floor in pump existing pump room with 30MPa concrete | D84: m³ | E84: 20
A86: 10.3.3 | C86: Break out existing door to allow installation of new generator
C87: re[lace door and brick up to match existing building | D87: Item | E87: 1
A115: Schedule 10 total carried to summary
A116: =A53+1 -> Bill of Quantities page number 37

Sheet 11 Site Works
A1: =Works!A1 -> CONTRACT JW14402 | F1: =Works!F1 -> Date :08/09/2025
A2: JOBURG WATER
A3: =Works!A3 -> Turffontein Corridors of Freedom - Water Upgrade (Forest Hill New Tower and Pumpstation)
A5: Item | B5: Payment | C5: Item Description | D5: Unit | E5: Quantities | F5: Rate | G5: Amount
A6: number | B6: reference | G6: Rands.cents
B7: SANS | C7: Schedule11
B8: 1 200 | C8: Site Works (Earthworks & Retaining Wall)
A9: 11.1 | C9: Site Clearance
A11: 11.1.1 | C11: Clear and grub:
C13: Areas including removal of trees and shrubs up to 1,0 m girth, transport and
C14: disposal of debris to designated dumping site within 60 km radius of site | D14: m² | E14: 3,400
A16: 11.1.2 | C16: Remove and grub large trees and tree stumps of girth:
A18: 11.1.2.1 | C18: Over 1,0 m and up to and including 2,0 m | D18: no | E18: 4
A20: 11.1.2.2 | C20: Over 2,0 m and up to and including 3,0 m | D20: no | E20: 1
A22: 11.1.3 | C22: Reclear surfaces (only on instructions from Engineer):
C24: Areas | D24: m² | E24: 2,250
A26: 11.1.3 | C26: Take down existing fences | D26: km | E26: 0.2
A28: 11.1.4 | C28: Remove topsoil to nominal depth of 150 mm and stockpile | D28: m³ | E28: 340
A30: 11.2 | C30: Bulk Earthworks
A32: 11.2.1 | C32: Fill and compact with material from stockpile to 95% Mod AASHTO density | D32: m³ | E32: 300
A34: 11.2.2 | C34: Fill and compact with crushed building rubble stockpiled on site | D34: m³ | E34: 50
A36: 11.2.3 | C36: Fill with imported G5 material from source found by Contractor | D36: m³ | E36: 6,000
A57: =A58+1 -> Schedule sub total carried forward to page 39
A58: ='10 Alterations'!A116+1 -> Bill of Quantities page number 38
A64: Item | B64: Payment | C64: Item Description | D64: Unit | E64: Quantities | F64: Rate | G64: Amount
A65: number | B65: reference | G65: Rands.cents
B66: SANS | C66: Schedule11 Continue
B67: 1 200 | C67: Site Works (Earthworks & Retaining Wall)
A68: =A58 -> -\schedule continued from page 38
A70: 10.3 | C70: Retaining Wall
C72: Design Assumptions
C74: Wall length | D74: m | E74: 160
C75: Maximum Wall height | D75: m | E75: 4
C76: Average Wall height | D76: m | E76: 2
C77: Face Angle | D77: deg | E77: 70
C78: Loading conditions | D78: kPa | E78: 5
C79: Ground surface behind the retaining wall | D79: Level | E79: 0°
C80: Insitu embankment | D80: Fill
A83: 11.3.1 | C83: Foundations
A85: 11.3.1.1 | C85: Excavate and hand trim for foundations
C86: Soft material | D86: m³ | E86: 15
C87: Intermediate material | D87: m³ | E87: 10
C88: Hard rock material | D88: m³ | E88: 5
C90: Concrete
A92: 11.3.1.2 | C92: Supply and place 20MPa concrete in foundations
A94: 11.3.2 | C94: Wall & Facings
A96: 11.3.2.1 | C96: Supply and install ENVIROWALL precast concrete blocks | D96: m² | E96: 350
A98: 11.3.3 | C98: Backfill
A100: 11.3.3.1 | C100: Place, spread & compact backfill material to Manufacturer's specifications | D100: m³ | E100: 400
A102: 11.3.3.2 | C102: Supply and install geogrid mesh reinforcement | D102: m³ | E102: 1,600
A104: 11.3.4 | C104: Steel Reinforcement
A106: 11.3.4.1 | C106: High tensile steel reinforcement to structural concrete work
C107: Various diameter bars ( To be specified by engineer ) | D107: ton | E107: 1.6
A109: 11.3.5 | C109: Erosion Protection & Drainage
A111: 11.3.5.1 | C111: Supply and install bidim A2 for erosion protection | D111: m² | E111: 750
A113: 11.3.5.2 | C113: Supply & place subsoil drain, incl. 19 mm no fines concrete
C114: & 110Dia Flopipe all wrapped in bidim A2 | D114: m | E114: 160
A116: 11.3.5.3 | C116: Outlet pipes every 5m | D116: m | E116: 25
A118: 11.3.5.4 | C118: Engineers certificate for Retaining Wall | D118: sum | E118: 1
A122: Schedule 11 total carried to summary
A123: =A58+1 -> Bill of Quantities page number 39

Sheet 12 Electrical & Generator
A1: =Works!A1 -> CONTRACT JW14402 | F1: =Works!F1 -> Date :08/09/2025 | J1: 30.00%
A2: JOBURG WATER
A3: =Works!A3 -> Turffontein Corridors of Freedom - Water Upgrade (Forest Hill New Tower and Pumpstation)
A5: Item | B5: Payment | C5: Item Description | D5: Unit | E5: Quantities | F5: Rate | G5: Amount
A6: number | B6: reference | G6: Rands.cents
B7: SANS | C7: Schedule12
B8: 1 200 | C8: ELECTRICAL INSTALLATIONS
A9: 12.1 | C9: PRELIMINARIES
A11: 12.1.1 | C11: Site facilities and workshop | D11: Sum | E11: 1
A13: 12.1.2 | C13: Water, electricity and telecommunication services | D13: Sum | E13: 1
A15: 12.1.3 | C15: Guarding of material | D15: Sum | E15: 1
A17: 12.1.4 | C17: Setting out of works | D17: Sum | E17: 1
A19: 12.1.5 | C19: Construction programme | D19: Sum | E19: 1
A21: 12.1.6 | C21: Workshop drawings and "As Built" drawings and operating manuals | D21: Sum | E21: 1
A23: 12.1.7 | C23: Off-loading of material | D23: Sum | E23: 1
A25: 12.1.8 | C25: Cleaning of site upon completion of project | D25: Sum | E25: 1
A27: 12.1.9 | C27: Testing and commissioning of the total project including
C28: certificate of compliance | D28: Sum | E28: 1
A30: 12.1.10 | C30: Supply and installation of signs and notices. | D30: Sum | E30: 1
A32: 12.1.11 | C32: Site Meetings | D32: Sum | E32: 1
A34: 12.1.12 | C34: Co-ordination with Civil Contractor, Mechanical Sub-Contractor and Client | D34: Sum | E34: 1
A36: 12.1.13 | C36: Co-ordination with City Power (Upgrade of CB) | D36: Sum | E36: 1
A38: 12.1.14 | C38: Amount to comply with all requirements of the OHS Act | D38: Sum | E38: 1
C39: and the specification
A41: 12.1.15 | C41: Insurances as required by the contract. | D41: Sum | E41: 1
A43: 12.1.16 | C43: Other Preliminary and general costs required by the contractor
C44: (furnish details)
C45: a) Training | D45: Prov | F45: 4,500.00 | G45: =F45 -> 4,500.00
A47: 12.1.17 | C47: Provisional Sum for Lightning Protection (Reinstating) on Existing Tower | D47: Sum | E47: 1 | F47: 50,000.00 | G47: =E47*F47 -> 50,000.00
A49: 12.1.18 | C49: Provisional Sum for Lightning Protection on New Tower | D49: Sum | E49: 1 | F49: 100,000.00 | G49: =E49*F49 -> 100,000.00
A55: =A56+1 -> Schedule sub total carried forward to page 41
A56: ='11 Site Works'!A123+1 -> Bill of Quantities page number 40
A62: Item | B62: Payment | C62: Item Description | D62: Unit | E62: Quantities | F62: Rate | G62: Amount
A63: number | B63: reference | G63: Rands.cents
B64: SANS | C64: Schedule12 Continue
B65: 1 200 | C65: =C8 -> ELECTRICAL INSTALLATIONS
A67: =A56 -> -\schedule continued from page 40
A69: 12.2 | C69: SITE RETICULATION, SITE LIGHTING, MANHOLES AND SLEEVES PIPES
A71: 12.2.1 | C71: 600/1000V PVC PVC SWA (ECC) PVC cable installed in cable sleeves
C72: or in cable trenches with BCEW as specified
C74: 185mm² 4 core with copper conductors - ECC | D74: m | E74: 400
C75: 4mm² 3 core with copper conductors (Tower-Aviation lights) | D75: m | E75: 260
C76: 6mm2 3 core with copper conductor (Towers) | D76: m | E76: 182
C77: 6mm2 4 core with copper conductor (ECC) (Perimeter Lighting) | D77: m | E77: 590
C78: 25mm² 4 core with copper conductors (ECC) (Generator room/Gatehouse) | D78: m | E78: 180
A80: 12.2.2 | C80: Termination of 600/1000V PVC PVC SWA (ECC) PVC cable
C82: 185mm² 4 core with copper conductors | D82: Each | E82: 8
C83: 4mm² 3 core with copper conductors | D83: Each | E83: 12
C84: 6mm² 4 core with copper conductors | D84: Each | E84: 30
C85: 6mm² 3 core with copper conductors | D85: Each | E85: 24
C86: 25mm² 4core with copper conductors | D86: Each | E86: 16
A88: 12.2.3 | C88: Cable joints for 600/1000V PVC PVC SWA (ECC) PVC cable
C90: 185mm² 4 core with Cu conductors | D90: Each | E90: 1
A92: 12.2.4 | C92: Cable sleeve pipes:
C94: 160mm diameter sleeve pipe | D94: m | E94: 75
C95: 110mm diameter sleeve pipe | D95: m | E95: 200
C96: 50mm diameter sleeve pipe | D96: m | E96: 100
A98: 12.2.5 | C98: Long radius bends for cable sleeve pipes:
C100: 160mm diameter | D100: Each | E100: 18
C101: 110mm diameter | D101: Each | E101: 6
C102: 50mm diameter | D102: Each | E102: 2
A104: 12.2.6 | C104: Excavation of cable sleeve pipe and cable trenches including backfilling
C105: and compaction in the following soil types
C107: Soft and pickable material | D107: m² | E107: 150
C108: Rock | D108: m² | E108: 50
A110: 12.2.7 | C110: Perimeter light pole 7,5m MH with 1.5m overhang including | D110: Each | E110: 15
C111: Beka LEDLume XP1 45W (6790 Lm)
A113: 12.2.8 | C113: 20 m High Mast light with 6 x 230W LED flood lights at 360Deg. | D113: Each | E113: 1
A115: 12.2.9 | C115: Manhole complete as per detail | D115: Each | E115: 8
A117: 12.2.10 | C117: 2mm diameter galvanised steel draw wire | D117: m | E117: 500
A120: =A121+1 -> Schedule sub total carried forward to page 42
A121: =A56+1 -> Bill of Quantities page number 41
A127: Item | B127: Payment | C127: Item Description | D127: Unit | E127: Quantities | F127: Rate | G127: Amount
A128: number | B128: reference | G128: Rands.cents
B129: SANS | C129: Schedule12 Continue
B130: 1 200 | C130: =C65 -> ELECTRICAL INSTALLATIONS
A131: =A121 -> -\schedule continued from page 41
A133: 12.3 | C133: SITE RETICULATION, SITE LIGHTING, MANHOLES AND SLEEVES PIPES
A135: 12.3.1 | C135: Distribution boards complete as specified:
C136: DB-1 (Pump station) Provisional sum | D136: Each | E136: 1
C137: DB-G (Generator Room) Provisional sum | D137: Each | E137: 1
C138: DB-GH (Gate House) Provisional sum | D138: Each | E138: 1
C139: DB-T1 & T2 (Tower DBs) Provisional sum | D139: Each | E139: 2
A141: 12.3.2 | C141: Light fittings complete with conduit outlet box and connection to
C142: conduit and wiring
C143: Type L1 (Pump Station + Towers 1 and 2) | D143: Each | E143: 30
C144: Type L2 | D144: Each | E144: 14
A146: 12.3.3 | C146: Light switch complete with outlet box, cover plate and connection to conduit
C147: and wiring
C148: 1 lever 1 way flush mounted | D148: Each | E148: 2
C149: 1 lever 1 way industrial | D149: Each | E149: 2
C150: 1 lever 1 way with IP65 rating industrial | D150: Each | E150: 2
C152: Switched socket outlets including outlet box, cover plate and connection
C153: to conduit and wiring
C154: Double flush mounted | D154: Each | E154: 2
C155: Double surface mounted galvanised | D155: Each | E155: 8
C156: 40A 3 phase Surface Mount welding socket | D156: Each | E156: 2
C157: Industrial single | D157: Each | E157: 10
A159: 12.3.4 | C159: Isolators including outlet box, cover plate and connection
C160: to conduit and wiring
C161: 30A double pole flush mounted | D161: Each | E161: 2
A163: 12.3.5 | C163: Conduit surface mounted on spacer bar saddles or installed recessed in
C164: concrete slabs or walls-Galvanised
C165: 20mm diameter galvanised | D165: m | E165: 100
C166: 25mm diameter galvanised | D166: m | E166: 100
A168: 12.3.6 | C168: PVC insulated conductor installed in conduit
C169: 2,5mm² | D169: m | E169: 300
C170: 4mm² | D170: m | E170: 300
A172: 12.3.7 | C172: 2,5mm² bare copper earth wire installed in conduit | D172: m | E172: 300
A174: 12.3.8 | C174: Labelling of all power outlets (lights, switches, socket outlets and welding | D174: Sum | E174: 1
A176: 12.3.9 | C176: Socket outlets | D176: Sum | E176: 1
A178: 12.3.10 | C178: Telecom/LAN outlet (100x100 flush draw box with cover plate) | D178: Each | E178: 1
A181: =A182+1 -> Schedule sub total carried forward to page 43
A182: =A121+1 -> Bill of Quantities page number 42
A187: CONTRACT JW14402 | F187: Date :08/08/2025 | J187: 30.00%
A188: JOBURG WATER
A189: Turffontein Corridors of Freedom - Water Upgrade (Forest Hill New Tower and Pumpstation)
A191: Item | B191: Payment | C191: Item Description | D191: Unit | E191: Quantities | F191: Rate | G191: Amount
A192: number | B192: reference | G192: Rands.cents
B193: SANS | C193: Schedule12 Continue
B194: 1 200 | C194: =C8 -> ELECTRICAL INSTALLATIONS
A195: =A182 -> -\schedule continued from page 42
A197: 12.4 | C197: EARTHING
A199: 12.4.1 | C199: Supply and install earthmat- Resistance < 1 Ohm Provisional Amount | D199: Sum | E199: 1
A201: 12.4.2 | C201: 70mm² bare copper earth wire with terminations | D201: m | E201: 10
A203: 12.4.3 | C203: Bonding of all metalwork in pump station and towers to earth | D203: Sum | E203: 1
A205: 12.4.4 | C205: 20mm diameter galvanised conduit surface mounted on spacer
C206: bar saddles | D206: m | E206: 30
A208: 12.4.5 | C208: Excavation, bedding, blanketing, backfilling and compaction of
C209: earthmats in the following soil types:
C211: Soft and pickable material | D211: m² | E211: 10
C212: Rock | D212: m² | E212: 5
A214: 12.5 | C214: TOWERS (2X) AND PUMPSTATION
A216: 12.5.1 | C216: Motor Control Centre (MCC) complete as specified: VSD-3 x 110kW
C217: (Specification to be studied in detail and understood to price MCC)
C219: MCC 1 | D219: Each | E219: 1
A220: 12.5.2 | C220: 600/1000V PVC PVC SWA PVC cable installed in cable sleeves or in
C221: cable trenches
C223: 120mm² 4 core with copper conductors + 70 mm2 BCEW | D223: m | E223: 60
C224: 6mm² 4 core + 2.5 mm2 BCEW (Welding Sockets) | D224: m | E224: 60
C225: 2,5mm² 3 core with copper conductors (control) | D225: m | E225: 750
C226: 1,5mm² 12 core with copper conductors (control) | D226: m | E226: 60
C227: 1,5mm² 4 core with copper conductors (E/Stops) | D227: m | E227: 170
C228: 1,5mm² 7 core with copper conductors (E/Stops) | D228: m | E228: 60
A230: 12.5 | C230: TOWERS (2X) AND PUMPSTATION
A232: 12.5.3 | C232: Termination of 600/1000V PVC PVC SWA (ECC) PVC cable
C234: 120mm² 4 core + 70 mm2 BCEW | D234: Each | E234: 8
C235: 4mm² 4 core + 2.5 mm2 BCEW (Welding Sockets) | D235: Each | E235: 4
C236: 1,5mm² 4 core | D236: Each | E236: 6
C237: 1,5mm² 12 core | D237: Each | E237: 6
C238: 1,5mm² 12 core | D238: Each | E238: 12
C239: 2,5mm² 3 core | D239: Each | E239: 6
C240: 6mm² 4 core | D240: Each | E240: 4
A242: =A243+1 -> Schedule sub total carried forward to page 44
A243: =A182+1 -> Bill of Quantities page number 43
A249: Item | B249: Payment | C249: Item Description | D249: Unit | E249: Quantities | F249: Rate | G249: Amount
A250: number | B250: reference | G250: Rands.cents
B251: SANS | C251: Schedule12 Continue
B252: 1 200 | C252: =C194 -> ELECTRICAL INSTALLATIONS
A253: =A243 -> -\schedule continued from page 43
A255: 12.5.4 | C255: Supply and install emergency stops at each motor on pedestal or on
C256: motor terminal box.
C258: Supply and Install emergency stop bottons | D258: Each | E258: 3
A260: 12.5.5 | C260: JUNCTION BOXES
C262: At each motor to accommodate power and instrumentation | D262: Each | E262: 3
C263: At pressure transducers -Pratley type 1 cable connection box | D263: Each | E263: 12
C264: At ultrasonic transmitter (Size to suit application-IP65) | D264: Each | E264: 7
A266: 12.5.6 | C266: 300 x 50mm wide cable wire mesh tray and accessories (including all
C267: splices, mounting brackets, and fixing material)
C269: Cable tray | D269: m | E269: 160
C270: External bend | D270: Each | E270: 4
C271: Internal bend | D271: Each | E271: 4
C272: T-piece | D272: Each | E272: 4
C273: Horizontal bend | D273: Each | E273: 4
A275: 12.5.7 | C275: 200 x 50mm wide cable wire mesh tray and accessories (including all
C276: splices, mounting brackets and fixing material):
C278: Cable tray | D278: m | E278: 15
C279: External bend | D279: Each | E279: 1
C280: Internal bend | D280: Each | E280: 2
C281: T-piece | D281: Each | E281: 2
C282: Horizontal bend | D282: Each | E282: 3
A284: 12.5.8 | C284: 50 x 50mm wide cable wire mesh tray and accessories (including all
C285: splices, mounting brackets and fixing materials)
C287: Cable tray | D287: m | E287: 80
C288: External bend | D288: Each | E288: 2
C289: Internal bend | D289: Each | E289: 4
C290: T-piece | D290: Each | E290: 2
C291: Horizontal bend | D291: Each | E291: 3
A293: 12.5.9 | C293: Galvanised conduit surface mounted on spacer bar saddles
C295: 20mm diamter | D295: m | E295: 50
C296: 25mm diamter | D296: m | E296: 50
A298: 12.5.10 | C298: Aviation warning lights
C300: Type C light | D300: Each | E300: 4
C301: Mounting pole as per detail | D301: Each | E301: 4
A303: 12.5.11 | C303: 20m length of 5 core cable and special plug on one end for connection
C304: of pump monitor to telemetry marshalling cubicle | D304: Each | E304: 3
A306: =A307+1 -> Schedule sub total carried forward to page 45
A307: =A243+1 -> Bill of Quantities page number 44
A312: CONTRACT JW14402 | F312: Date :08/08/2025 | J312: 30.00%
A313: JOBURG WATER
... 61 more rows

Sheet Sum
A1: =Works!A1 -> CONTRACT JW14402 | C1: =Works!F1 -> Date :08/09/2025
A2: JOBURG WATER
A3: Turffontein Corridors of Freedom - Water Upgrade (Foresthill New Tower and Pumpstation)
A5: Summary of the Schedule of Quantities
B6: Description | C6: Total:
A7: Schedule 1 | B7: Preliminary and general | G7: R 24,900,000.00
A8: Schedule 2 | B8: Occupational health and safety requirements | G8: R 1,500,000.00
A9: Schedule 3 | B9: 2,5 Mℓ capacity elevated water tower | G9: R 21,300,000.00
A10: Schedule 4 | B10: Pump station and guard hut | G10: R 3,850,000.00
A11: Schedule 5 | B11: Security fencing | G11: R 3,000,000.00
A12: Schedule 6 | B12: Chambers | G12: R 1,650,000.00
A13: Schedule 7 | B13: Pipe work | G13: R 10,000,000.00
A14: Schedule 8 | B14: Special equipment | G14: R 5,200,000.00
A15: Schedule 9 | B15: Road works, kerbing & storm water | G15: R 2,100,000.00
A16: Schedule10 | B16: Alterations and refurbishment of existing buildings | G16: R 1,200,000.00
A17: Schedule 11 | B17: Site Works | G17: R 3,700,000.00
A18: Schedule 12 | B18: electrical & Emergency Generator installation | G18: R 8,300,000.00
G19: R 4,000,000.00
A23: Sub - total : construction value | G23: =SUM(G7:G21) -> R 90,700,000.00
A25: Add -10% Contingencies
A27: Sub - total | G27: =G23+G25 -> R 90,700,000.00
A29: Add - 10% for Escalation
A31: Sub - total | G31: =G27+G29 -> R 90,700,000.00
A33: Add 15% Value Added Tax | G33: =G27*0.15 -> R 13,605,000.00
A35: Total value of project carried to form of offer : | G35: =G27+G33 -> R 104,305,000.00
A38: BOQ page number 47
